Workbook

Sheet Sheet1 (hidden)
A1: 작업자 | B1: 개발 시작예정 | C1: 개발 완료예정 | D1: 개발 실제시작 | E1: 개발 실제완료 | F1: 테스트 완료일 | G1: 비고 | H1: 전체본수 | I1: 완료본수 | J1: 미완료본수 | K1: 완료예정월 | L1: 실제완료월 | M1: 지연일수
A2: 신주승 | B2: 2021-03-11 | C2: 2021-03-12 | H2: 1 | I2: 0 | J2: 1 | K2: 3 | M2: 0
A3: 신주승 | B3: 2021-03-10 | C3: 2021-03-11 | G3: "개명본인인증" 클릭 시 휴대폰본인인증 팝업 노출 | H3: 1 | I3: 0 | J3: 1 | K3: 3 | M3: 0
A4: 신주승 | B4: 2021-03-10 | C4: 2021-03-10 | H4: 1 | I4: 0 | J4: 1 | K4: 3 | M4: 0
A5: 신주승 | G5: 등급쿠폰 일괄다운로드 기능 | H5: 1 | I5: 0 | J5: 1 | M5: 0
A6: 신주승 | B6: 2021-02-10 | C6: 2021-02-10 | D6: 2021-02-23 | E6: 2021-02-23 | H6: 1 | I6: 1 | J6: 0 | K6: 2 | L6: 2 | M6: 13
A7: 신주승 | B7: 2021-02-09 | C7: 2021-02-09 | G7: 퍼블이 아직 안나옴 ,개정이력별 데이터 등록 필요(css가 달라졌기에) | H7: 1 | I7: 0 | J7: 1 | K7: 2 | M7: 0
A8: 신주승 | B8: 2021-02-09 | C8: 2021-02-09 | G8: 퍼블이 아직 안나옴 | H8: 1 | I8: 0 | J8: 1 | K8: 2 | M8: 0
A9: 신주승 | B9: 2021-02-19 | C9: 2021-02-24 | H9: 1 | I9: 0 | J9: 1 | K9: 2 | M9: 0
A10: 신주승 | B10: 2021-02-17 | C10: 2021-02-18 | D10: 2021-02-23 | E10: 2021-02-25 | H10: 1 | I10: 1 | J10: 0 | K10: 2 | L10: 2 | M10: 7
A11: 신주승 | B11: 2021-02-16 | C11: 2021-02-17 | D11: 2021-02-26 | E11: 2021-02-26 | H11: 1 | I11: 1 | J11: 0 | K11: 2 | L11: 2 | M11: 9
A12: 신주승 | B12: 2021-02-15 | C12: 2021-02-16 | D12: 2021-02-16 | E12: 2021-02-23 | H12: 1 | I12: 1 | J12: 0 | K12: 2 | L12: 2 | M12: 7
A13: 신주승 | B13: 2021-02-03 | C13: 2021-02-05 | D13: 2021-02-03 | E13: 2021-02-09 | H13: 1 | I13: 1 | J13: 0 | K13: 2 | L13: 2 | M13: 4
A14: 신주승 | B14: 2021-02-01 | C14: 2021-02-03 | D14: 2021-02-01 | E14: 2021-02-08 | H14: 1 | I14: 1 | J14: 0 | K14: 2 | L14: 2 | M14: 5
A15: 신주승 | B15: 2021-03-05 | C15: 2021-03-05 | D15: 2021-02-10 | E15: 2021-02-10 | H15: 1 | I15: 1 | J15: 0 | K15: 3 | L15: 2 | M15: 0
A16: 신주승 | B16: 2021-03-04 | C16: 2021-03-05 | D16: 2021-02-10 | E16: 2021-02-10 | G16: 메일 모듈 붙이고 확인하기 | H16: 1 | I16: 1 | J16: 0 | K16: 3 | L16: 2 | M16: 0
A17: 신주승 | B17: 2021-03-03 | C17: 2021-03-03 | D17: 2021-02-08 | E17: 2021-02-09 | H17: 1 | I17: 1 | J17: 0 | K17: 3 | L17: 2 | M17: 0
A18: 신주승 | B18: 2021-03-01 | C18: 2021-03-03 | D18: 2021-02-05 | E18: 2021-02-08 | H18: 1 | I18: 1 | J18: 0 | K18: 3 | L18: 2 | M18: 0
A19: 신주승 | B19: 2021-03-25 | C19: 2021-03-25 | H19: 1 | I19: 0 | J19: 1 | K19: 3 | M19: 0
A20: 신주승 | B20: 2021-03-17 | C20: 2021-03-17 | G20: 간편 로그인 경우도 해줘야 한다. | H20: 1 | I20: 0 | J20: 1 | K20: 3 | M20: 0
A21: 신주승 | B21: 2021-03-08 | C21: 2021-03-09 | G21: 임시비밀번호여부 컬럼 값 조회 후 처리 | H21: 1 | I21: 0 | J21: 1 | K21: 3 | M21: 0
A22: 신주승 | B22: 2021-02-25 | C22: 2021-02-26 | G22: 1. 본인인증 CI 값이 없는 고객이 로그인 시 안내 페이지 노출 2. 5회 이상 로그인 실패 시 구글 캡챠 노출 3. 10회 이상 입력 시 3분간 로그인 차단 4. 카카오로그인은 카카오싱크를 이용 | H22: 1 | I22: 0 | J22: 1 | K22: 2 | M22: 0
A23: 신주승 | B23: 2021-02-24 | C23: 2021-02-24 | H23: 1 | I23: 0 | J23: 1 | K23: 2 | M23: 0
A24: 신주승 | B24: 2021-02-18 | C24: 2021-02-19 | D24: 2021-02-25 | E24: 2021-02-25 | G24: 1. CI 값이 제대로 오는지 확인 해야함(현재 CI못받고 있음) | H24: 1 | I24: 1 | J24: 0 | K24: 2 | L24: 2 | M24: 6
A25: 신주승 | B25: 2021-02-15 | C25: 2021-02-16 | D25: 2021-02-26 | E25: 2021-02-26 | G25: 1. 휴대폰번호 2.출생년도 오픈전 셋팅 필요 | H25: 1 | I25: 1 | J25: 0 | K25: 2 | L25: 2 | M25: 10
A26: 신주승 | B26: 2021-02-15 | C26: 2021-02-15 | H26: 1 | I26: 0 | J26: 1 | K26: 2 | M26: 0
A27: 신주승 | B27: 2021-04-26 | C27: 2021-04-26 | H27: 1 | I27: 0 | J27: 1 | K27: 4 | M27: 0
A28: 신주승 | B28: 2021-04-20 | C28: 2021-04-23 | H28: 1 | I28: 0 | J28: 1 | K28: 4 | M28: 0
A29: 신주승 | B29: 2021-04-13 | C29: 2021-04-19 | H29: 1 | I29: 0 | J29: 1 | K29: 4 | M29: 0
A30: 신주승 | B30: 2021-04-01 | C30: 2021-04-12 | H30: 1 | I30: 0 | J30: 1 | K30: 4 | M30: 0
A31: 신주승 | B31: 2021-03-19 | C31: 2021-03-23 | H31: 1 | I31: 0 | J31: 1 | K31: 3 | M31: 0
A32: 신주승 | B32: 2021-03-17 | C32: 2021-03-18 | H32: 1 | I32: 0 | J32: 1 | K32: 3 | M32: 0
A33: 신주승 | B33: 2021-03-16 | C33: 2021-03-16 | H33: 1 | I33: 0 | J33: 1 | K33: 3 | M33: 0
A34: 신주승 | B34: 2021-03-16 | C34: 2021-03-16 | G34: 프론트에서 회원가입 시 등록하는 "회원정보 보유기간"에 따라 해당 기간만큼의 접속기록(로그인 기록)이 없을 시 휴면으로 처리 | H34: 1 | I34: 0 | J34: 1 | K34: 3 | M34: 0
A35: 신주승 | B35: 2021-03-15 | C35: 2021-03-15 | H35: 1 | I35: 0 | J35: 1 | K35: 3 | M35: 0
A36: 신주승 | B36: 2021-03-24 | C36: 2021-03-24 | H36: 1 | I36: 0 | J36: 1 | K36: 3 | M36: 0
A37: 신주승 | B37: 2021-03-24 | C37: 2021-03-24 | H37: 1 | I37: 0 | J37: 1 | K37: 3 | M37: 0
A38: 신주승 | B38: 2021-03-23 | C38: 2021-03-23 | H38: 1 | I38: 0 | J38: 1 | K38: 3 | M38: 0
A39: 신주승 | B39: 2021-03-23 | C39: 2021-03-23 | H39: 1 | I39: 0 | J39: 1 | K39: 3 | M39: 0
A40: 신주승 | B40: 2021-03-23 | C40: 2021-03-23 | G40: 당월 생일인 회원을 대상으로 해당 월 1일에 발송 | H40: 1 | I40: 0 | J40: 1 | K40: 3 | M40: 0
A41: 신주승 | B41: 2021-03-23 | C41: 2021-03-23 | G41: 마케팅 정보 수신자에 한해 발송. 가입일로부터 2년 시점에 발송 | H41: 1 | I41: 0 | J41: 1 | K41: 3 | M41: 0
A42: 신주승 | B42: 2021-03-23 | C42: 2021-03-23 | G42: 가입일로부터 1년 시점에 발송 | H42: 1 | I42: 0 | J42: 1 | K42: 3 | M42: 0
A43: 신주승 | B43: 2021-03-22 | C43: 2021-03-22 | G43: 마지막 로그인 이후 11개월간 로그인 기록이 없는 경우 발송 | H43: 1 | I43: 0 | J43: 1 | K43: 3 | M43: 0
A44: 신주승 | B44: 2021-03-22 | C44: 2021-03-22 | G44: 1. 3만원 이상 구매 시 3천원쿠폰 : 3개월 이상~6개월 미만 미로그인 회원 중 이메일/SMS 수신자 2. 6만원 이상 구매 시 9천원쿠폰 : 6개월 이상~9개월 미만 미로그인 회원 중 이메일/SMS 수신자 3. 20%쿠폰(최대할인액 5만원) : 9개월 이상~12개월 미만 미로그인 회원 중 이메일/SMS 수신자 | H44: 1 | I44: 0 | J44: 1 | K44: 3 | M44: 0
A45: 신주승 | B45: 2021-03-22 | C45: 2021-03-22 | H45: 1 | I45: 0 | J45: 1 | K45: 3 | M45: 0
A46: 신주승 | B46: 2021-03-22 | C46: 2021-03-22 | H46: 1 | I46: 0 | J46: 1 | K46: 3 | M46: 0
A47: 신주승 | H47: 1 | I47: 0 | J47: 1 | M47: 0
A48: 신주승 | B48: 2021-01-26 | C48: 2021-01-27 | D48: 2021-01-26 | E48: 2021-01-27 | H48: 1 | I48: 1 | J48: 0 | K48: 1 | L48: 1 | M48: 0
A49: 신주승 | B49: 2021-01-25 | C49: 2021-01-25 | D49: 2021-01-25 | E49: 2021-01-25 | H49: 1 | I49: 1 | J49: 0 | K49: 1 | L49: 1 | M49: 0
A50: 신주승 | B50: 2021-01-22 | C50: 2021-01-22 | D50: 2021-01-22 | E50: 2021-01-22 | H50: 1 | I50: 1 | J50: 0 | K50: 1 | L50: 1 | M50: 0
A51: 신주승 | B51: 2021-01-22 | C51: 2021-01-22 | D51: 2021-01-22 | E51: 2021-01-22 | H51: 1 | I51: 1 | J51: 0 | K51: 1 | L51: 1 | M51: 0
A52: 신주승 | B52: 2021-01-22 | C52: 2021-01-22 | D52: 2021-01-22 | E52: 2021-01-22 | H52: 1 | I52: 1 | J52: 0 | K52: 1 | L52: 1 | M52: 0
A53: 신주승 | B53: 2021-01-22 | C53: 2021-01-22 | D53: 2021-01-22 | E53: 2021-01-22 | H53: 1 | I53: 1 | J53: 0 | K53: 1 | L53: 1 | M53: 0
A54: 신주승 | B54: 2021-01-21 | C54: 2021-01-21 | D54: 2021-01-21 | E54: 2021-01-21 | H54: 1 | I54: 1 | J54: 0 | K54: 1 | L54: 1 | M54: 0
A55: 신주승 | B55: 2021-01-21 | C55: 2021-01-21 | D55: 2021-01-21 | E55: 2021-01-21 | H55: 1 | I55: 1 | J55: 0 | K55: 1 | L55: 1 | M55: 0
A56: 신주승 | B56: 2021-01-26 | C56: 2021-01-27 | D56: 2021-01-27 | E56: 2021-01-27 | H56: 1 | I56: 1 | J56: 0 | K56: 1 | L56: 1 | M56: 0
A57: 신주승 | B57: 2021-01-13 | C57: 2021-01-15 | D57: 2021-01-13 | E57: 2021-01-15 | H57: 1 | I57: 1 | J57: 0 | K57: 1 | L57: 1 | M57: 0
A58: 신주승 | B58: 2021-01-15 | C58: 2021-01-18 | D58: 2021-01-14 | E58: 2021-01-18 | H58: 1 | I58: 1 | J58: 0 | K58: 1 | L58: 1 | M58: 0
A59: 신주승 | B59: 2021-01-15 | C59: 2021-01-18 | D59: 2021-01-14 | E59: 2021-01-18 | G59: 휴면해제 기능 필요 | H59: 1 | I59: 1 | J59: 0 | K59: 1 | L59: 1 | M59: 0
A60: 신주승 | B60: 2021-01-18 | C60: 2021-01-18 | D60: 2021-01-18 | E60: 2021-01-18 | H60: 1 | I60: 1 | J60: 0 | K60: 1 | L60: 1 | M60: 0
A61: 신주승 | B61: 2021-01-18 | C61: 2021-01-18 | D61: 2021-01-18 | E61: 2021-01-18 | G61: LMS, E-MAIL 모듈 붙이고 확인 | H61: 1 | I61: 1 | J61: 0 | K61: 1 | L61: 1 | M61: 0
A62: 신주승 | B62: 2021-01-18 | C62: 2021-01-18 | D62: 2021-01-18 | E62: 2021-01-18 | H62: 1 | I62: 1 | J62: 0 | K62: 1 | L62: 1 | M62: 0
A63: 신주승 | B63: 2021-01-19 | C63: 2021-01-19 | D63: 2021-01-19 | E63: 2021-01-19 | G63: LMS 모듈 붙이고 확인 | H63: 1 | I63: 1 | J63: 0 | K63: 1 | L63: 1 | M63: 0
A64: 신주승 | B64: 2021-01-25 | C64: 2021-01-25 | D64: 2021-01-25 | E64: 2021-01-25 | G64: 알림톡 모듈 붙이고 확인 | H64: 1 | I64: 1 | J64: 0 | K64: 1 | L64: 1 | M64: 0
A65: 신주승 | B65: 2021-01-19 | C65: 2021-01-19 | D65: 2021-01-19 | E65: 2021-01-19 | G65: E-MAIL 모듈 붙이고 확인 | H65: 1 | I65: 1 | J65: 0 | K65: 1 | L65: 1 | M65: 0
A66: 신주승 | B66: 2021-01-25 | C66: 2021-01-25 | D66: 2021-01-25 | E66: 2021-01-25 | G66: 클레임 체크, 위시,카트 삭제 | H66: 1 | I66: 1 | J66: 0 | K66: 1 | L66: 1 | M66: 0
A67: 신주승 | B67: 2021-01-19 | C67: 2021-01-20 | D67: 2021-01-19 | E67: 2021-01-20 | G67: 개인정보 암호화,복호화 | H67: 1 | I67: 1 | J67: 0 | K67: 1 | L67: 1 | M67: 0
A68: 신주승 | B68: 2021-01-18 | C68: 2021-01-18 | D68: 2021-01-18 | E68: 2021-01-18 | H68: 1 | I68: 1 | J68: 0 | K68: 1 | L68: 1 | M68: 0
A69: 신주승 | B69: 2021-01-19 | C69: 2021-01-20 | D69: 2021-01-19 | E69: 2021-01-20 | H69: 1 | I69: 1 | J69: 0 | K69: 1 | L69: 1 | M69: 0
A70: 신주승 | B70: 2021-01-21 | C70: 2021-01-21 | D70: 2021-01-21 | E70: 2021-01-21 | H70: 1 | I70: 1 | J70: 0 | K70: 1 | L70: 1 | M70: 0
A71: 신주승 | B71: 2021-01-19 | C71: 2021-01-20 | D71: 2021-01-19 | E71: 2021-01-20 | H71: 1 | I71: 1 | J71: 0 | K71: 1 | L71: 1 | M71: 0
A72: 신주승 | B72: 2021-01-26 | C72: 2021-01-26 | D72: 2021-01-28 | E72: 2021-01-29 | H72: 1 | I72: 1 | J72: 0 | K72: 1 | L72: 1 | M72: 3
A73: 신주승 | B73: 2021-01-19 | C73: 2021-01-20 | D73: 2021-01-19 | E73: 2021-01-20 | H73: 1 | I73: 1 | J73: 0 | K73: 1 | L73: 1 | M73: 0

Sheet Sheet2 (hidden)
A1: 작업자 | B1: 개발 시작예정 | C1: 개발 완료예정 | D1: 개발 실제시작 | E1: 개발 실제완료 | F1: 테스트 완료일 | G1: 비고 | H1: 전체본수 | I1: 완료본수 | J1: 미완료본수 | K1: 완료예정월 | L1: 실제완료월 | M1: 지연일수
A2: 김덕규 | H2: 1 | I2: 0 | J2: 1 | M2: 0
A3: 김덕규 | H3: 1 | I3: 0 | J3: 1 | M3: 0
A4: 김덕규 | H4: 1 | I4: 0 | J4: 1 | M4: 0
A5: 김덕규 | H5: 1 | I5: 0 | J5: 1 | M5: 0
A6: 김덕규 | B6: 2021-02-01 | C6: 2021-02-01 | D6: 2021-02-01 | E6: 2021-02-01 | H6: 1 | I6: 1 | J6: 0 | K6: 2 | L6: 2 | M6: 0
A7: 김덕규 | B7: 2021-02-10 | C7: 2021-02-17 | D7: 2021-02-19 | E7: 2021-02-19 | H7: 1 | I7: 1 | J7: 0 | K7: 2 | L7: 2 | M7: 2
A8: 김덕규 | B8: 2021-02-08 | C8: 2021-02-16 | D8: 2021-02-18 | E8: 2021-02-19 | H8: 1 | I8: 1 | J8: 0 | K8: 2 | L8: 2 | M8: 3
A9: 김덕규 | B9: 2021-02-08 | C9: 2021-02-16 | D9: 2021-02-18 | E9: 2021-02-19 | H9: 1 | I9: 1 | J9: 0 | K9: 2 | L9: 2 | M9: 3
A10: 김덕규 | B10: 2021-02-01 | C10: 2021-02-01 | D10: 2021-02-01 | E10: 2021-02-01 | H10: 1 | I10: 1 | J10: 0 | K10: 2 | L10: 2 | M10: 0
A11: 김덕규 | B11: 2021-02-01 | C11: 2021-02-01 | D11: 2021-02-01 | E11: 2021-02-01 | H11: 1 | I11: 1 | J11: 0 | K11: 2 | L11: 2 | M11: 0
A12: 김덕규 | H12: 1 | I12: 0 | J12: 1 | M12: 0
A13: 김덕규 | B13: 2021-02-08 | C13: 2021-02-15 | D13: 2021-02-15 | E13: 2021-02-15 | H13: 1 | I13: 1 | J13: 0 | K13: 2 | L13: 2 | M13: 0
A14: 김덕규 | B14: 2021-02-08 | C14: 2021-02-15 | D14: 2021-02-15 | E14: 2021-02-15 | H14: 1 | I14: 1 | J14: 0 | K14: 2 | L14: 2 | M14: 0
A15: 김덕규 | H15: 1 | I15: 0 | J15: 1 | M15: 0
A16: 김덕규 | G16: 벤더(공급업체) 리스트 표출 | H16: 1 | I16: 0 | J16: 1 | M16: 0
A17: 김덕규 | G17: 개정이력별 데이터 등록 필요(css가 달라졌기에) | H17: 1 | I17: 0 | J17: 1 | M17: 0
A18: 김덕규 | H18: 1 | I18: 0 | J18: 1 | M18: 0
A19: 김덕규 | B19: 2021-01-28 | C19: 2021-01-29 | D19: 2021-01-28 | E19: 2021-01-29 | H19: 1 | I19: 1 | J19: 0 | K19: 1 | L19: 1 | M19: 0
A20: 김덕규 | G20: 최근검색어, 자동완성검색어(검색엔진 솔루션) | H20: 1 | I20: 0 | J20: 1 | M20: 0
A21: 김덕규 | G21: 카테고리(CASUAL, SPORTS, KIDS)로 구성하여 처리 | H21: 1 | I21: 0 | J21: 1 | M21: 0
A22: 김덕규 | B22: 2021-02-18 | C22: 2021-02-18 | G22: 파일업로드 툴 미적용 | H22: 1 | I22: 0 | J22: 1 | K22: 2 | M22: 0
A23: 김덕규 | H23: 1 | I23: 0 | J23: 1 | M23: 0
A24: 김덕규 | H24: 1 | I24: 0 | J24: 1 | M24: 0
A25: 김덕규 | B25: 2021-04-01 | C25: 2021-04-12 | H25: 1 | I25: 0 | J25: 1 | K25: 4 | M25: 0
A26: 김덕규 | B26: 2020-10-06 | C26: 2020-10-06 | D26: 2020-10-06 | E26: 2020-10-06 | H26: 1 | I26: 1 | J26: 0 | K26: 10 | L26: 10 | M26: 0
A27: 김덕규 | B27: 2020-12-29 | C27: 2020-12-29 | D27: 2020-12-29 | E27: 2020-12-29 | H27: 1 | I27: 1 | J27: 0 | K27: 12 | L27: 12 | M27: 0
A28: 김덕규 | B28: 2020-10-19 | C28: 2020-10-19 | D28: 2020-10-19 | E28: 2020-10-19 | H28: 1 | I28: 1 | J28: 0 | K28: 10 | L28: 10 | M28: 0
A29: 김덕규 | B29: 2020-10-19 | C29: 2020-10-19 | D29: 2020-10-19 | E29: 2020-10-19 | H29: 1 | I29: 1 | J29: 0 | K29: 10 | L29: 10 | M29: 0
A30: 김덕규 | B30: 2020-12-28 | C30: 2020-12-28 | D30: 2020-12-28 | E30: 2020-12-28 | H30: 1 | I30: 1 | J30: 0 | K30: 12 | L30: 12 | M30: 0
A31: 김덕규 | B31: 2020-10-19 | C31: 2020-10-19 | D31: 2020-10-19 | E31: 2020-10-19 | H31: 1 | I31: 1 | J31: 0 | K31: 10 | L31: 10 | M31: 0
A32: 김덕규 | B32: 2020-12-04 | C32: 2020-12-04 | D32: 2020-12-04 | E32: 2020-12-04 | H32: 1 | I32: 1 | J32: 0 | K32: 12 | L32: 12 | M32: 0
A33: 김덕규 | B33: 2020-10-19 | C33: 2020-10-19 | D33: 2020-10-19 | E33: 2020-10-19 | H33: 1 | I33: 1 | J33: 0 | K33: 10 | L33: 10 | M33: 0
A34: 김덕규 | B34: 2021-01-20 | C34: 2021-01-20 | D34: 2021-01-20 | E34: 2021-01-20 | H34: 1 | I34: 1 | J34: 0 | K34: 1 | L34: 1 | M34: 0
A35: 김덕규 | B35: 2020-12-28 | C35: 2020-12-28 | D35: 2020-12-28 | E35: 2020-12-28 | H35: 1 | I35: 1 | J35: 0 | K35: 12 | L35: 12 | M35: 0
A36: 김덕규 | B36: 2021-01-21 | C36: 2021-01-21 | D36: 2021-01-21 | E36: 2021-01-21 | H36: 1 | I36: 1 | J36: 0 | K36: 1 | L36: 1 | M36: 0
A37: 김덕규 | B37: 2020-12-28 | C37: 2020-12-28 | D37: 2020-12-28 | E37: 2020-12-28 | G37: 1. 답변문구 템플릿 미확인 2. 알림톡 발송 미구현 | H37: 1 | I37: 1 | J37: 0 | K37: 12 | L37: 12 | M37: 0
A38: 김덕규 | H38: 1 | I38: 0 | J38: 1 | M38: 0
A39: 김덕규 | B39: 2020-10-06 | C39: 2020-10-06 | D39: 2020-10-06 | E39: 2020-10-06 | H39: 1 | I39: 1 | J39: 0 | K39: 10 | L39: 10 | M39: 0
A40: 김덕규 | B40: 2020-10-16 | C40: 2020-10-16 | D40: 2020-10-16 | E40: 2020-10-16 | H40: 1 | I40: 1 | J40: 0 | K40: 10 | L40: 10 | M40: 0
A41: 김덕규 | B41: 2021-01-04 | C41: 2021-01-04 | D41: 2021-01-04 | E41: 2021-01-04 | H41: 1 | I41: 1 | J41: 0 | K41: 1 | L41: 1 | M41: 0
A42: 김덕규 | B42: 2021-04-01 | C42: 2021-05-31 | G42: 컨텐츠 내용 미확정 | H42: 1 | I42: 0 | J42: 1 | K42: 5 | M42: 0
A43: 김덕규 | B43: 2020-10-06 | C43: 2020-10-06 | D43: 2020-10-06 | E43: 2020-10-06 | H43: 1 | I43: 1 | J43: 0 | K43: 10 | L43: 10 | M43: 0
A44: 김덕규 | B44: 2020-10-06 | C44: 2020-10-06 | D44: 2020-10-06 | E44: 2020-10-06 | H44: 1 | I44: 1 | J44: 0 | K44: 10 | L44: 10 | M44: 0
A45: 김덕규 | B45: 2020-10-30 | C45: 2020-10-30 | D45: 2020-10-30 | E45: 2020-10-30 | H45: 1 | I45: 1 | J45: 0 | K45: 10 | L45: 10 | M45: 0
A46: 김덕규 | B46: 2020-10-06 | C46: 2020-10-06 | D46: 2020-10-06 | E46: 2020-10-06 | H46: 1 | I46: 1 | J46: 0 | K46: 10 | L46: 10 | M46: 0
A47: 김덕규 | B47: 2020-10-06 | C47: 2020-10-06 | D47: 2020-10-06 | E47: 2020-10-06 | H47: 1 | I47: 1 | J47: 0 | K47: 10 | L47: 10 | M47: 0
A48: 김덕규 | B48: 2020-12-03 | C48: 2020-12-03 | D48: 2020-12-03 | E48: 2020-12-03 | G48: 배치를 호출해 실행하는 로직 미구현 | H48: 1 | I48: 1 | J48: 0 | K48: 12 | L48: 12 | M48: 0
A49: 김덕규 | B49: 2020-11-13 | C49: 2020-11-13 | D49: 2020-11-13 | E49: 2020-11-13 | H49: 1 | I49: 1 | J49: 0 | K49: 11 | L49: 11 | M49: 0
A50: 김덕규 | B50: 2020-11-02 | C50: 2020-11-02 | D50: 2020-11-03 | E50: 2020-11-03 | H50: 1 | I50: 1 | J50: 0 | K50: 11 | L50: 11 | M50: 1
A51: 김덕규 | B51: 2020-10-08 | C51: 2020-10-08 | D51: 2020-10-08 | E51: 2020-10-08 | H51: 1 | I51: 1 | J51: 0 | K51: 10 | L51: 10 | M51: 0
A52: 김덕규 | B52: 2020-10-07 | C52: 2020-10-07 | D52: 2020-10-07 | E52: 2020-10-07 | H52: 1 | I52: 1 | J52: 0 | K52: 10 | L52: 10 | M52: 0
A53: 김덕규 | B53: 2020-10-13 | C53: 2020-10-13 | D53: 2020-10-13 | E53: 2020-10-13 | H53: 1 | I53: 1 | J53: 0 | K53: 10 | L53: 10 | M53: 0
A54: 김덕규 | B54: 2020-10-07 | C54: 2020-10-07 | D54: 2020-10-07 | E54: 2020-10-07 | H54: 1 | I54: 1 | J54: 0 | K54: 10 | L54: 10 | M54: 0
A55: 김덕규 | B55: 2020-10-07 | C55: 2020-10-07 | D55: 2020-10-07 | E55: 2020-10-07 | H55: 1 | I55: 1 | J55: 0 | K55: 10 | L55: 10 | M55: 0
A56: 김덕규 | B56: 2020-10-29 | C56: 2020-10-29 | D56: 2020-10-29 | E56: 2020-10-29 | H56: 1 | I56: 1 | J56: 0 | K56: 10 | L56: 10 | M56: 0
A57: 김덕규 | B57: 2020-10-29 | C57: 2020-10-29 | D57: 2020-10-29 | E57: 2020-10-29 | H57: 1 | I57: 1 | J57: 0 | K57: 10 | L57: 10 | M57: 0
A58: 김덕규 | B58: 2021-01-06 | C58: 2021-01-07 | D58: 2021-01-06 | E58: 2021-01-07 | H58: 1 | I58: 1 | J58: 0 | K58: 1 | L58: 1 | M58: 0
A59: 김덕규 | B59: 2021-02-25 | C59: 2021-02-26 | D59: 2021-02-25 | E59: 2021-02-26 | H59: 1 | I59: 1 | J59: 0 | K59: 2 | L59: 2 | M59: 0
A60: 김덕규 | B60: 2020-10-14 | C60: 2020-10-14 | D60: 2020-10-14 | E60: 2020-10-14 | H60: 1 | I60: 1 | J60: 0 | K60: 10 | L60: 10 | M60: 0
A61: 김덕규 | B61: 2020-10-14 | C61: 2020-10-14 | D61: 2020-10-14 | E61: 2020-10-14 | H61: 1 | I61: 1 | J61: 0 | K61: 10 | L61: 10 | M61: 0
A62: 김덕규 | B62: 2020-11-02 | C62: 2020-11-02 | D62: 2020-11-03 | E62: 2020-11-03 | H62: 1 | I62: 1 | J62: 0 | K62: 11 | L62: 11 | M62: 1
A63: 김덕규 | B63: 2020-11-02 | C63: 2020-11-02 | D63: 2020-11-03 | E63: 2020-11-03 | H63: 1 | I63: 1 | J63: 0 | K63: 11 | L63: 11 | M63: 1
A64: 김덕규 | B64: 2020-10-30 | C64: 2020-10-30 | D64: 2020-10-30 | E64: 2020-10-30 | H64: 1 | I64: 1 | J64: 0 | K64: 10 | L64: 10 | M64: 0
A65: 김덕규 | B65: 2020-10-30 | C65: 2020-10-30 | D65: 2020-10-30 | E65: 2020-10-30 | G65: summernote 이미지/동영상 업로드 기능 미완료 | H65: 1 | I65: 1 | J65: 0 | K65: 10 | L65: 10 | M65: 0
A66: 김덕규 | B66: 2021-01-20 | C66: 2021-01-20 | D66: 2021-01-20 | E66: 2021-01-20 | H66: 1 | I66: 1 | J66: 0 | K66: 1 | L66: 1 | M66: 0
A67: 김덕규 | B67: 2021-04-01 | C67: 2021-05-31 | H67: 1 | I67: 0 | J67: 1 | K67: 5 | M67: 0
A68: 김덕규 | B68: 2020-10-20 | C68: 2020-10-20 | D68: 2020-10-20 | E68: 2020-10-20 | H68: 1 | I68: 1 | J68: 0 | K68: 10 | L68: 10 | M68: 0
A69: 김덕규 | B69: 2020-10-20 | C69: 2020-10-20 | D69: 2020-10-20 | E69: 2020-10-20 | H69: 1 | I69: 1 | J69: 0 | K69: 10 | L69: 10 | M69: 0
A70: 김덕규 | B70: 2020-10-20 | C70: 2020-10-20 | D70: 2020-10-20 | E70: 2020-10-20 | H70: 1 | I70: 1 | J70: 0 | K70: 10 | L70: 10 | M70: 0
A71: 김덕규 | B71: 2020-11-04 | C71: 2020-11-05 | D71: 2020-11-04 | E71: 2020-11-05 | H71: 1 | I71: 1 | J71: 0 | K71: 11 | L71: 11 | M71: 0
A72: 김덕규 | B72: 2020-11-04 | C72: 2020-11-05 | D72: 2020-11-04 | E72: 2020-11-05 | H72: 1 | I72: 1 | J72: 0 | K72: 11 | L72: 11 | M72: 0
A73: 김덕규 | B73: 2020-11-07 | C73: 2020-11-08 | D73: 2020-11-07 | E73: 2020-11-08 | H73: 1 | I73: 1 | J73: 0 | K73: 11 | L73: 11 | M73: 0
A74: 김덕규 | B74: 2020-10-16 | C74: 2020-10-16 | D74: 2020-10-16 | E74: 2020-10-16 | H74: 1 | I74: 1 | J74: 0 | K74: 10 | L74: 10 | M74: 0
A75: 김덕규 | B75: 2020-11-18 | C75: 2020-11-18 | D75: 2020-11-18 | E75: 2020-11-18 | G75: Service Key가 없어 테스트 못함 | H75: 1 | I75: 1 | J75: 0 | K75: 11 | L75: 11 | M75: 0
A76: 김덕규 | B76: 2020-10-14 | C76: 2020-10-14 | D76: 2020-10-14 | E76: 2020-10-14 | H76: 1 | I76: 1 | J76: 0 | K76: 10 | L76: 10 | M76: 0
A77: 김덕규 | B77: 2021-01-18 | C77: 2021-01-18 | D77: 2021-01-18 | E77: 2021-01-18 | H77: 1 | I77: 1 | J77: 0 | K77: 1 | L77: 1 | M77: 0
A78: 김덕규 | B78: 2021-01-18 | C78: 2021-01-18 | D78: 2021-01-18 | E78: 2021-01-18 | H78: 1 | I78: 1 | J78: 0 | K78: 1 | L78: 1 | M78: 0
A79: 김덕규 | B79: 2020-11-12 | C79: 2020-11-12 | D79: 2020-11-12 | E79: 2020-11-12 | H79: 1 | I79: 1 | J79: 0 | K79: 11 | L79: 11 | M79: 0
A80: 김덕규 | B80: 2020-11-07 | C80: 2020-11-07 | D80: 2020-11-07 | E80: 2020-11-07 | H80: 1 | I80: 1 | J80: 0 | K80: 11 | L80: 11 | M80: 0
A81: 김덕규 | B81: 2020-11-06 | C81: 2020-11-06 | D81: 2020-11-06 | E81: 2020-11-06 | H81: 1 | I81: 1 | J81: 0 | K81: 11 | L81: 11 | M81: 0
A82: 김덕규 | B82: 2020-12-24 | C82: 2020-12-25 | D82: 2020-12-24 | E82: 2020-12-25 | H82: 1 | I82: 1 | J82: 0 | K82: 12 | L82: 12 | M82: 0
A83: 김덕규 | B83: 2020-12-24 | C83: 2020-12-25 | D83: 2020-12-24 | E83: 2020-12-25 | G83: 1. 답변문구 템플릿 미확인 2. 알림톡 발송 미구현 | H83: 1 | I83: 1 | J83: 0 | K83: 12 | L83: 12 | M83: 0
A84: 김덕규 | B84: 2020-12-24 | C84: 2020-12-25 | D84: 2020-12-24 | E84: 2020-12-25 | H84: 1 | I84: 1 | J84: 0 | K84: 12 | L84: 12 | M84: 0
A85: 김덕규 | B85: 2020-12-24 | C85: 2020-12-25 | D85: 2020-12-24 | E85: 2020-12-25 | G85: 1. 답변문구 템플릿 미확인 2. 알림톡 발송 미구현 | H85: 1 | I85: 1 | J85: 0 | K85: 12 | L85: 12 | M85: 0
A86: 김덕규 | B86: 2020-11-05 | C86: 2020-11-05 | D86: 2020-11-05 | E86: 2020-11-05 | H86: 1 | I86: 1 | J86: 0 | K86: 11 | L86: 11 | M86: 0
A87: 김덕규 | B87: 2021-01-08 | C87: 2021-01-08 | D87: 2021-01-08 | E87: 2021-01-08 | H87: 1 | I87: 1 | J87: 0 | K87: 1 | L87: 1 | M87: 0
A88: 김덕규 | B88: 2021-02-11 | C88: 2021-02-19 | H88: 1 | I88: 0 | J88: 1 | K88: 2 | M88: 0
A89: 김덕규 | B89: 2021-02-11 | C89: 2021-02-19 | G89: 1.동영상상품평은 승인 시 포인트 지급 2.베스트상품평 선정 | H89: 1 | I89: 0 | J89: 1 | K89: 2 | M89: 0

Sheet 프로그램목록
A1: STYLE24 온라인몰 신규 구축 | Y1: =TODAY() -> 2021-08-02
A4: No | B4: 대분류 | C4: 중분류 | D4: 소분류 | E4: 프로그램 ID | F4: 프로그램명 | I4: 프로그램 URL | J4: CRUD | K4: 난이도 | L4: 기획 | N4: 디자인 | P4: 퍼블 | R4: 관리자 | S4: 작업자 | T4: 개발 시작예정 | U4: 개발 완료예정 | V4: 개발 실제시작 | W4: 개발 실제완료 | X4: 테스트 완료일 | Y4: 비고 | Z4: 전체본수 | AA4: 완료본수 | AB4: 미완료본수 | AC4: 완료예정월 | AD4: 실제완료월 | AE4: 지연일수
L5: 예상일 | M5: 완료일 | N5: 예상일 | O5: 완료일 | P5: 예상일 | Q5: 완료일
A6: 1 | B6: 어드민 | C6: 상품 | D6: 기준관리 | E6: A1004 | F6: WMS시즌관리 | I6: /goods/wms/season/form | J6: CRU | K6: 하 | R6: 김덕규 | S6: 김은실 | T6: 2020-11-13 | U6: 2020-11-13 | V6: 2020-11-13 | W6: 2020-11-13 | Z6: =IF(S6="",0,1) -> 1 | AA6: =IF(LEN(W6)>0,1,0) -> 1 | AB6: =Z6-AA6 -> 0 | AC6: =IF(U6="","",MONTH(U6)) -> 11 | AD6: =IF(W6="","",MONTH(W6)) -> 11 | AE6: =IF(W6<U6,0,W6-U6) -> 0 | AF6: =TEXT(AC6,"00") -> 11
A7: 2 | E7: A1001 | F7: 품목관리 | I7: /goods/itemkind/list/form | J7: CRU | K7: 하 | R7: 김덕규 | S7: 김은실 | T7: 2020-10-16 | U7: 2020-10-16 | V7: 2020-10-16 | W7: 2020-10-16 | Z7: =IF(S7="",0,1) -> 1 | AA7: =IF(LEN(W7)>0,1,0) -> 1 | AB7: =Z7-AA7 -> 0 | AC7: =IF(U7="","",MONTH(U7)) -> 10 | AD7: =IF(W7="","",MONTH(W7)) -> 10 | AE7: =IF(W7<U7,0,W7-U7) -> 0 | AF7: =TEXT(AC7,"00") -> 10
A8: 3 | E8: A1002 | F8: 색상관리 | I8: /goods/color/list/form | J8: CRU | K8: 하 | R8: 김덕규 | S8: 김은실 | T8: 2020-10-16 | U8: 2020-10-16 | V8: 2020-10-16 | W8: 2020-10-16 | Z8: 1 | AA8: 1 | AB8: 0 | AC8: 10 | AD8: 10 | AE8: 0 | AF8: 10
A9: 4 | E9: A1003 | F9: 정보고시관리 | I9: /goods/notiInfo/list/form | J9: CRUD | K9: 중 | R9: 김덕규 | S9: 김은실 | T9: 2020-10-19 | U9: 2020-10-19 | V9: 2020-10-19 | W9: 2020-10-19 | Z9: 1 | AA9: 1 | AB9: 0 | AC9: 10 | AD9: 10 | AE9: 0 | AF9: 10
A10: 5 | E10: A1005 | F10: WMS색상관리 | I10: /goods/wms/color/form | J10: CRU | K10: 하 | R10: 김덕규 | S10: 김은실 | T10: 2020-11-12 | U10: 2020-11-13 | V10: 2020-11-12 | W10: 2020-11-13 | Z10: 1 | AA10: 1 | AB10: 0 | AC10: 11 | AD10: 11 | AE10: 0 | AF10: 11
A11: 6 | E11: A1006 | F11: WMS스타일년도관리 | I11: /goods/wms/styleYear/form | J11: CRU | K11: 하 | R11: 김덕규 | S11: 김은실 | T11: 2020-11-13 | U11: 2020-11-13 | V11: 2020-11-13 | W11: 2020-11-13 | Z11: 1 | AA11: 1 | AB11: 0 | AC11: 11 | AD11: 11 | AE11: 0 | AF11: 11
A12: 7 | D12: 상품관리 | E12: A2001 | F12: 상품목록 | I12: /goods/list/form | J12: CRUD | K12: 상 | R12: 김덕규 | S12: 김은실 | T12: 2020-10-19 | U12: 2020-10-21 | V12: 2020-10-19 | W12: 2020-10-21 | Z12: 1 | AA12: 1 | AB12: 0 | AC12: 10 | AD12: 10 | AE12: 0 | AF12: 10
A13: 8 | E13: A2001 | F13: 상품목록 > 상품정보일괄변경 | I13: /goods/list/form | J13: RU | K13: 중 | R13: 김덕규 | S13: 김은실 | T13: 2020-10-21 | U13: 2020-10-22 | V13: 2020-10-21 | W13: 2020-10-22 | Z13: 1 | AA13: 1 | AB13: 0 | AC13: 10 | AD13: 10 | AE13: 0 | AF13: 10
A14: 9 | E14: A2001 | F14: 상품목록 > 상품상세 팝업 | I14: /goods/detail/form | J14: CRUD | K14: 상 | R14: 김덕규 | S14: 김은실 | T14: 2020-10-23 | U14: 2020-10-29 | V14: 2020-10-23 | W14: 2020-10-29 | Z14: 1 | AA14: 1 | AB14: 0 | AC14: 10 | AD14: 10 | AE14: 0 | AF14: 10
A15: 10 | E15: A2001 | F15: 상품목록 > 상품이미지조회 팝업 | I15: /goods/image/form | J15: CRUD | K15: 상 | R15: 김덕규 | S15: 김은실 | T15: 2020-12-18 | U15: 2020-12-22 | V15: 2020-12-18 | W15: 2020-12-22 | Z15: 1 | AA15: 1 | AB15: 0 | AC15: 12 | AD15: 12 | AE15: 0 | AF15: 12
A16: 11 | E16: A2001 | F16: 상품목록 > 세트상품구성 팝업 | I16: /goods/set/form | J16: CRU | K16: 중 | R16: 김덕규 | S16: 김은실 | T16: 2020-11-04 | U16: 2020-11-05 | V16: 2020-11-04 | W16: 2020-11-05 | Z16: 1 | AA16: 1 | AB16: 0 | AC16: 11 | AD16: 11 | AE16: 0 | AF16: 11
A17: 12 | E17: A2001 | F17: 상품목록 > 딜상품구성 팝업 | I17: /goods/deal/form | J17: CRU | K17: 중 | R17: 김덕규 | S17: 김은실 | T17: 2020-11-04 | U17: 2020-11-05 | V17: 2020-11-04 | W17: 2020-11-05 | Z17: 1 | AA17: 1 | AB17: 0 | AC17: 11 | AD17: 11 | AE17: 0 | AF17: 11
A18: 13 | E18: A2001 | F18: 상품목록 > 품목조회 팝업 | I18: /goods/itemkind/form | J18: CRU | K18: 중 | R18: 김덕규 | S18: 김은실 | T18: 2021-07-19 | U18: 2021-07-21 | V18: 2021-07-19 | W18: 2021-07-21 | Z18: =IF(S18="",0,1) -> 1 | AA18: =IF(LEN(W18)>0,1,0) -> 1 | AB18: =Z18-AA18 -> 0 | AC18: =IF(U18="","",MONTH(U18)) -> 7 | AD18: =IF(W18="","",MONTH(W18)) -> 7 | AE18: =IF(W18<U18,0,W18-U18) -> 0 | AF18: =TEXT(AC18,"00") -> 07
A19: 14 | E19: A2021 | F19: 자사상품등록 | I19: /goods/salf/register/form | J19: CRU | K19: 상 | R19: 김덕규 | S19: 김은실 | T19: 2021-07-02 | U19: 2021-07-07 | V19: 2021-07-02 | W19: 2021-07-07 | Z19: 1 | AA19: 1 | AB19: 0 | AC19: 7 | AD19: 7 | AE19: 0 | AF19: 07
A20: 15 | E20: A3001 | F20: 사이즈별재고현황 | I20: /stock/size/form | J20: CRUD | K20: 하 | R20: 김덕규 | S20: 김은실 | T20: 2020-11-18 | U20: 2020-11-20 | V20: 2020-11-18 | W20: 2020-11-20 | Z20: 1 | AA20: 1 | AB20: 0 | AC20: 11 | AD20: 11 | AE20: 0 | AF20: 11
A21: 16 | E21: A2005 | F21: 입점가격변경승인관리 | I21: /goods/price/confirm/form | J21: RU | K21: 중 | R21: 김덕규 | S21: 김은실 | T21: 2020-11-25 | U21: 2020-11-26 | V21: 2020-11-25 | W21: 2020-11-26 | Z21: 1 | AA21: 1 | AB21: 0 | AC21: 11 | AD21: 11 | AE21: 0 | AF21: 11
A22: 17 | E22: A2006 | F22: 타이틀예약관리 | I22: /goods/tnm/list/form | J22: RD | K22: 중 | R22: 김덕규 | S22: 김은실 | T22: 2020-10-30 | U22: 2020-11-02 | V22: 2020-10-30 | W22: 2020-11-02 | Z22: 1 | AA22: 1 | AB22: 0 | AC22: 11 | AD22: 11 | AE22: 0 | AF22: 11
A23: 18 | E23: A2006 | F23: 타이틀예관리 > 타이틀예약등록 | I23: /goods/rsvt/tnm/list/form | J23: CR | K23: 중 | R23: 김덕규 | S23: 김은실 | T23: 2020-10-30 | U23: 2020-11-02 | V23: 2020-10-30 | W23: 2020-11-02 | Z23: 1 | AA23: 1 | AB23: 0 | AC23: 11 | AD23: 11 | AE23: 0 | AF23: 11
A24: 19 | E24: A2004 | F24: 상품품목변경관리 | I24: /goods/itemkind/form | J24: RU | K24: 상 | R24: 김덕규 | S24: 김은실 | T24: 2020-10-30 | U24: 2020-10-30 | V24: 2020-10-30 | W24: 2020-10-30 | Z24: 1 | AA24: 1 | AB24: 0 | AC24: 10 | AD24: 10 | AE24: 0 | AF24: 10
A25: 20 | F25: 상품추가 팝업 | I25: /goods/list/popup/form | J25: RU | K25: 중 | R25: 김덕규 | S25: 김은실 | T25: 2020-10-22 | U25: 2020-10-22 | V25: 2020-10-22 | W25: 2020-10-22 | Z25: 1 | AA25: 1 | AB25: 0 | AC25: 10 | AD25: 10 | AE25: 0 | AF25: 10
A26: 21 | E26: A2007 | F26: 상품동영상관리 | I26: /goods/video/list/form | J26: CRU | K26: 중 | R26: 김덕규 | S26: 김은실 | T26: 2020-11-17 | U26: 2020-11-17 | V26: 2020-11-17 | W26: 2020-11-17 | Z26: 1 | AA26: 1 | AB26: 0 | AC26: 11 | AD26: 11 | AE26: 0 | AF26: 11
A27: 22 | F27: 상품동영상관리 > 업체연동 | J27: CRU | K27: 중 | R27: 김덕규 | S27: 김덕규 | T27: 2021-04-05 | U27: 2021-04-21 | V27: 2021-04-16 | W27: 2021-04-20 | Z27: 1 | AA27: 1 | AB27: 0 | AC27: 4 | AD27: 4 | AE27: 0 | AF27: 04
A28: 23 | E28: A2002 | F28: 상품대량등록 | I28: /goods/mass/form | J28: CRU | K28: 상 | R28: 김덕규 | S28: 김은실 | T28: 2021-01-26 | U28: 2021-01-28 | V28: 2021-01-26 | W28: 2021-01-28 | Z28: 1 | AA28: 1 | AB28: 0 | AC28: 1 | AD28: 1 | AE28: 0 | AF28: 01
A29: 24 | E29: A2002 | F29: 상품대량등록 > 상품연동로그 | I29: /goods/mass/form | J29: R | K29: 하 | R29: 김덕규 | S29: 김은실 | T29: 2021-01-26 | U29: 2021-01-28 | V29: 2021-01-26 | W29: 2021-01-28 | Z29: 1 | AA29: 1 | AB29: 0 | AC29: 1 | AD29: 1 | AE29: 0 | AF29: 01
A30: 25 | E30: A2002 | F30: 상품대량수정 | I30: /goods/mass/form | J30: CRU | K30: 상 | R30: 김덕규 | S30: 김은실 | T30: 2021-01-26 | U30: 2021-01-28 | V30: 2021-01-26 | W30: 2021-01-28 | Z30: 1 | AA30: 1 | AB30: 0 | AC30: 1 | AD30: 1 | AE30: 0 | AF30: 01
A31: 26 | E31: A2010 | F31: 상품예약판매관리 | I31: /goods/reserve/sell/form | J31: RU | K31: 중 | R31: 김덕규 | S31: 김은실 | T31: 2020-11-10 | U31: 2020-11-12 | V31: 2020-11-10 | W31: 2020-11-12 | Z31: 1 | AA31: 1 | AB31: 0 | AC31: 11 | AD31: 11 | AE31: 0 | AF31: 11
A32: 27 | E32: A2010 | F32: 상품예약판매관리 > 등록 팝업 | I32: /goods/reserve/sell/popup/form | J32: CRU | K32: 중 | R32: 김덕규 | S32: 김은실 | T32: 2020-11-10 | U32: 2020-11-12 | V32: 2020-11-10 | W32: 2020-11-12 | Z32: 1 | AA32: 1 | AB32: 0 | AC32: 11 | AD32: 11 | AE32: 0 | AF32: 11
A33: 28 | E33: A2011 | F33: 상품상세공지관리 | I33: /goods/detail/notice/form | J33: CRU | K33: 중 | R33: 김덕규 | S33: 김은실 | T33: 2020-11-06 | U33: 2020-11-10 | V33: 2020-11-06 | W33: 2020-11-10 | Z33: 1 | AA33: 1 | AB33: 0 | AC33: 11 | AD33: 11 | AE33: 0 | AF33: 11
A34: 29 | E34: A2012 | F34: 상품가격예약관리 | I34: /goods/reserve/price/form | J34: RD | K34: 중 | R34: 김덕규 | S34: 김은실 | T34: 2020-11-13 | U34: 2020-11-16 | V34: 2020-11-13 | W34: 2020-11-16 | Z34: 1 | AA34: 1 | AB34: 0 | AC34: 11 | AD34: 11 | AE34: 0 | AF34: 11
A35: 30 | E35: A2012 | F35: 상품가격예약관리 > 등록 팝업 | I35: /goods/reserve/price/popup/form | J35: CR | K35: 중 | R35: 김덕규 | S35: 김은실 | T35: 2020-11-13 | U35: 2020-11-16 | V35: 2020-11-13 | W35: 2020-11-16 | Z35: 1 | AA35: 1 | AB35: 0 | AC35: 11 | AD35: 11 | AE35: 0 | AF35: 11
A36: 31 | E36: A2009 | F36: 재입고알림관리 | I36: /goods/instock/alarm/form | J36: CRU | K36: 중 | R36: 김덕규 | S36: 김은실 | T36: 2020-12-16 | U36: 2020-12-17 | V36: 2020-12-16 | W36: 2020-12-17 | Z36: 1 | AA36: 1 | AB36: 0 | AC36: 12 | AD36: 12 | AE36: 0 | AF36: 12
A37: 32 | E37: A2008 | F37: EP제외상품관리 | I37: /goods/ep/skip/form | J37: RD | K37: 중 | R37: 김덕규 | S37: 김은실 | T37: 2020-11-03 | U37: 2020-11-03 | V37: 2020-11-03 | W37: 2020-11-03 | Z37: 1 | AA37: 1 | AB37: 0 | AC37: 11 | AD37: 11 | AE37: 0 | AF37: 11
A38: 33 | E38: A2008 | F38: EP제외상품관리 > 등록 팝업 | I38: /goods/ep/skip/popup/form | J38: CR | K38: 중 | R38: 김덕규 | S38: 김은실 | T38: 2020-11-03 | U38: 2020-11-03 | V38: 2020-11-03 | W38: 2020-11-03 | Z38: 1 | AA38: 1 | AB38: 0 | AC38: 11 | AD38: 11 | AE38: 0 | AF38: 11
A39: 34 | E39: A2013 | F39: 네이버최저가 | I39: /goods/naver/price/form | J39: CRU | K39: 중 | R39: 김덕규 | S39: 김은실 | T39: 2020-12-09 | U39: 2020-12-10 | V39: 2020-12-09 | W39: 2020-12-10 | Z39: 1 | AA39: 1 | AB39: 0 | AC39: 12 | AD39: 12 | AE39: 0 | AF39: 12
A40: 35 | E40: A2003 | F40: WMS입고단품목록 | I40: /goods/wms/instock/form | J40: CR | K40: 중 | R40: 김덕규 | S40: 김은실 | T40: 2021-01-05 | U40: 2021-01-05 | V40: 2021-01-05 | W40: 2021-01-05 | Z40: 1 | AA40: 1 | AB40: 0 | AC40: 1 | AD40: 1 | AE40: 0 | AF40: 01
A41: 36 | E41: A2020 | F41: WMS입고상품관리 | I41: /goods/wms/incomelot/sku/form | J41: R | K41: 하 | R41: 김덕규 | S41: 김은실 | T41: 2021-06-28 | U41: 2021-07-02 | V41: 2021-06-28 | W41: 2021-07-01 | Z41: =IF(S41="",0,1) -> 1 | AA41: =IF(LEN(W41)>0,1,0) -> 1 | AB41: =Z41-AA41 -> 0 | AC41: =IF(U41="","",MONTH(U41)) -> 7 | AD41: =IF(W41="","",MONTH(W41)) -> 7 | AE41: =IF(W41<U41,0,W41-U41) -> 0 | AF41: =TEXT(AC41,"00") -> 07
A42: 37 | E42: A2014 | F42: 상품고시정보조회 | I42: /goods/noti/info/form | J42: R | K42: 상 | R42: 김덕규 | S42: 김덕규 | T42: 2021-01-21 | U42: 2021-01-21 | V42: 2021-01-21 | W42: 2021-01-21 | Z42: 1 | AA42: 1 | AB42: 0 | AC42: 1 | AD42: 1 | AE42: 0 | AF42: 01
A43: 38 | E43: A2015 | F43: 광고상품관리 | I43: /goods/ad/form | J43: CRUD | K43: 중 | R43: 김덕규 | S43: 김은실 | T43: 2020-12-11 | U43: 2020-12-15 | V43: 2020-12-11 | W43: 2020-12-15 | Z43: 1 | AA43: 1 | AB43: 0 | AC43: 12 | AD43: 12 | AE43: 0 | AF43: 12
A44: 39 | E44: A2016 | F44: 사은품상품관리 | I44: /goods/freeGoods/form | J44: CRU | K44: 중 | R44: 김덕규 | S44: 김은실 | T44: 2020-12-28 | U44: 2020-12-29 | V44: 2020-12-28 | W44: 2020-12-29 | Z44: 1 | AA44: 1 | AB44: 0 | AC44: 12 | AD44: 12 | AE44: 0 | AF44: 12
A45: 40 | E45: A2017 | F45: 사이즈안내관리 | I45: /goods/size/info/form | J45: CRU | K45: 중 | R45: 김덕규 | S45: 김은실 | T45: 2021-01-26 | U45: 2021-01-27 | V45: 2021-01-26 | W45: 2021-01-27 | Z45: 1 | AA45: 1 | AB45: 0 | AC45: 1 | AD45: 1 | AE45: 0 | AF45: 01
A46: 41 | E46: A2018 | F46: 총알배송제외상품관리 | I46: /goods/quik/delivery/skip/form | J46: CRUD | K46: 중 | R46: 김덕규 | S46: 김은실 | T46: 2021-03-02 | U46: 2021-03-04 | V46: 2021-03-02 | W46: 2021-03-03 | Z46: =IF(S46="",0,1) -> 1 | AA46: =IF(LEN(W46)>0,1,0) -> 1 | AB46: =Z46-AA46 -> 0 | AC46: =IF(U46="","",MONTH(U46)) -> 3 | AD46: =IF(W46="","",MONTH(W46)) -> 3 | AE46: =IF(W46<U46,0,W46-U46) -> 0 | AF46: =TEXT(AC46,"00") -> 03
A47: 42 | E47: A2020 | F47: 자사단품등록 | I47: /goods/contents/form | J47: CRU | K47: 중 | R47: 김덕규 | S47: 김은실 | T47: 2021-07-05 | U47: 2021-07-09 | V47: 2021-07-05 | W47: 2021-07-09 | Z47: =IF(S47="",0,1) -> 1 | AA47: =IF(LEN(W47)>0,1,0) -> 1 | AB47: =Z47-AA47 -> 0 | AC47: =IF(U47="","",MONTH(U47)) -> 7 | AD47: =IF(W47="","",MONTH(W47)) -> 7 | AE47: =IF(W47<U47,0,W47-U47) -> 0 | AF47: =TEXT(AC47,"00") -> 07
A48: 43 | E48: A2021 | F48: 상품상세컨텐츠관리 | I48: /goods/size/info/form | J48: CRUD | K48: 중 | R48: 김덕규 | S48: 김은실 | T48: 2021-07-14 | U48: 2021-07-16 | V48: 2021-07-14 | W48: 2021-07-16 | Z48: 1 | AA48: 1 | AB48: 0 | AC48: 7 | AD48: 7 | AE48: 0 | AF48: 07
A49: 44 | C49: 전시 | D49: 전시관리 | E49: B1001 | F49: 카테고리관리 | I49: /display/category/form | J49: RU | K49: 중 | R49: 김덕규 | S49: 김덕규 | T49: 2021-01-04 | U49: 2021-01-04 | V49: 2021-01-04 | W49: 2021-01-04 | Z49: 1 | AA49: 1 | AB49: 0 | AC49: 1 | AD49: 1 | AE49: 0 | AF49: 01
A50: 45 | E50: B1002 | F50: 품목카테고리매핑관리 | I50: /display/itemkindCategory/list/form | J50: CRU | K50: 중 | R50: 김덕규 | S50: 최수빈 | T50: 2021-01-14 | U50: 2021-01-15 | V50: 2021-01-15 | W50: 2021-01-15 | Z50: 1 | AA50: 1 | AB50: 0 | AC50: 1 | AD50: 1 | AE50: 0 | AF50: 01
A51: 46 | E51: B1003 | F51: 상품별 카테고리전시관리 | I51: /display/goods/category/list/form | J51: CRUD | K51: 중 | R51: 김덕규 | S51: 최수빈 | T51: 2021-01-18 | U51: 2021-01-19 | V51: 2021-01-15 | W51: 2021-01-18 | Z51: 1 | AA51: 1 | AB51: 0 | AC51: 1 | AD51: 1 | AE51: 0 | AF51: 01
A52: 47 | E52: B1003 | F52: 상품별 카테고리전시관리 > 전시저장 | I52: /display/goods/category/save | J52: CRUD | K52: 중 | R52: 김덕규 | S52: 최수빈 | T52: 2021-01-20 | U52: 2021-01-22 | V52: 2021-01-18 | W52: 2021-01-18 | Z52: 1 | AA52: 1 | AB52: 0 | AC52: 1 | AD52: 1 | AE52: 0 | AF52: 01
A53: 48 | E53: B1003 | F53: 상품별 카테고리전시관리 > 전시삭제 | I53: /display/goods/category/delete | J53: CRUD | K53: 중 | R53: 김덕규 | S53: 최수빈 | T53: 2021-01-25 | U53: 2021-01-25 | V53: 2021-01-18 | W53: 2021-01-19 | Z53: 1 | AA53: 1 | AB53: 0 | AC53: 1 | AD53: 1 | AE53: 0 | AF53: 01
A54: 49 | E54: B1004 | F54: 카테고리별 상품전시관리 | I54: /display/category/goods/list/form | J54: CRUD | K54: 중 | R54: 김덕규 | S54: 최수빈 | T54: 2021-02-15 | U54: 2021-02-19 | V54: 2021-02-15 | W54: 2021-02-15 | Z54: 1 | AA54: 1 | AB54: 0 | AC54: 2 | AD54: 2 | AE54: 0 | AF54: 02
A55: 50 | E55: B1004 | F55: 카테고리별 상품전시관리 > 상품이동 | I55: /display/category/goods/move | J55: CRUD | K55: 중 | R55: 김덕규 | S55: 최수빈 | T55: 2021-02-17 | U55: 2021-02-19 | V55: 2021-02-16 | W55: 2021-02-17 | Z55: 1 | AA55: 1 | AB55: 0 | AC55: 2 | AD55: 2 | AE55: 0 | AF55: 02
A56: 51 | E56: B1004 | F56: 카테고리별 상품전시관리 > 상품복사 | I56: /display/category/goods/copy | J56: CRUD | K56: 중 | R56: 김덕규 | S56: 최수빈 | T56: 2021-02-18 | U56: 2021-02-19 | V56: 2021-02-17 | W56: 2021-02-17 | Z56: 1 | AA56: 1 | AB56: 0 | AC56: 2 | AD56: 2 | AE56: 0 | AF56: 02
A57: 52 | E57: B1004 | F57: 카테고리별 상품전시관리 > 상품추가 | I57: /display/goods/category/save | J57: CRUD | K57: 중 | R57: 김덕규 | S57: 최수빈 | T57: 2021-02-16 | U57: 2021-02-19 | V57: 2021-02-18 | W57: 2021-02-18 | Z57: 1 | AA57: 1 | AB57: 0 | AC57: 2 | AD57: 2 | AE57: 0 | AF57: 02
A58: 53 | E58: B1004 | F58: 카테고리별 상품전시관리 > 순서변경 | I58: /display/goods/dispord/change/popup/form | J58: CRUD | K58: 중 | R58: 김덕규 | S58: 최수빈 | T58: 2021-02-19 | U58: 2021-02-23 | V58: 2021-02-19 | W58: 2021-02-22 | Z58: 1 | AA58: 1 | AB58: 0 | AC58: 2 | AD58: 2 | AE58: 0 | AF58: 02
A59: 54 | E59: B1004 | F59: 카테고리별 상품전시관리 > 선택상품위로 | I59: /display//category/goods/dispord/updown | J59: CRUD | K59: 중 | R59: 김덕규 | S59: 최수빈 | T59: 2021-02-23 | U59: 2021-02-23 | V59: 2021-0223 | W59: 2021-02-23 | Z59: 1 | AA59: 1 | AB59: 0 | AC59: 2 | AD59: 2 | AE59: 0 | AF59: 02
A60: 55 | E60: B1004 | F60: 카테고리 조회 팝업 | I60: /display/category/popup/form | J60: CRUD | K60: 중 | R60: 김덕규 | S60: 최수빈 | T60: 2021-03-03 | U60: 2021-03-12 | V60: 2021-03-03 | W60: 2021-03-03 | Z60: 1 | AA60: 1 | AB60: 0 | AC60: 3 | AD60: 3 | AE60: 0 | AF60: 03
A61: 56 | E61: B1005 | F61: 메인전시관리 | I61: /display/main/list/form/ | J61: CRUD | K61: 상 | R61: 김덕규 | S61: 최수빈 | T61: 2021-02-24 | U61: 2021-03-19 | V61: 2021-02-24 | W61: 2021-03-26 | Y61: 추가 수정중/ [미리보기] 기능 -> 프론트 완료후 | Z61: 1 | AA61: 1 | AB61: 0 | AC61: 3 | AD61: 3 | AE61: 7 | AF61: 03
A62: 57 | E62: B1006 | F62: 팝업관리 | I62: /display/popup/form | J62: CRUD | K62: 중 | R62: 김덕규 | S62: 최수빈 | T62: 2021-03-08 | U62: 2021-03-09 | V62: 2021-03-03 | W62: 2021-03-04 | Y62: [미리보기] 기능 -> 프론트 완료후 | Z62: 1 | AA62: 1 | AB62: 0 | AC62: 3 | AD62: 3 | AE62: 0 | AF62: 03
A63: 58 | E63: B1008 | F63: 룩북관리 | I63: /display/lookbook/form | J63: CRUD | K63: 상 | R63: 김덕규 | S63: 최수빈 | T63: 2021-03-10 | U63: 2021-03-12 | V63: 2021-03-05 | W63: 2021-03-09 | Y63: 피커위치등록 기능 추가 | Z63: 1 | AA63: 1 | AB63: 0 | AC63: 3 | AD63: 3 | AE63: 0 | AF63: 03
A64: 59 | E64: B1009 | F64: 스플래시이미지관리 | I64: /display/splash/image/form | J64: CRUD | K64: 하 | R64: 김덕규 | S64: 김덕규 | T64: 2021-07-02 | U64: 2021-07-02 | V64: 2021-07-02 | W64: 2021-07-02 | Z64: =IF(S64="",0,1) -> 1 | AA64: =IF(LEN(W64)>0,1,0) -> 1 | AB64: =Z64-AA64 -> 0 | AC64: =IF(U64="","",MONTH(U64)) -> 7 | AD64: =IF(W64="","",MONTH(W64)) -> 7 | AE64: =IF(W64<U64,0,W64-U64) -> 0 | AF64: =TEXT(AC64,"00") -> 07
A65: 60 | C65: 회원/마케팅 | D65: 회원관리 | E65: D1001 | F65: 활동회원목록 | I65: /customer/active/list/form | J65: R | K65: 상 | R65: 김덕규 | S65: 신주승 | T65: 2021-01-13 | U65: 2021-01-15 | V65: 2021-01-13 | W65: 2021-01-15 | Z65: 1 | AA65: 1 | AB65: 0 | AC65: 1 | AD65: 1 | AE65: 0 | AF65: 01
A66: 61 | E66: D1002 | F66: 탈퇴회원목록 | I66: /customer/secede/list/form | J66: R | K66: 중 | R66: 김덕규 | S66: 신주승 | T66: 2021-01-15 | U66: 2021-01-18 | V66: 2021-01-14 | W66: 2021-01-18 | Z66: 1 | AA66: 1 | AB66: 0 | AC66: 1 | AD66: 1 | AE66: 0 | AF66: 01
A67: 62 | E67: D1003 | F67: 휴면회원목록 | I67: /customer/dormant/list/form | J67: R | K67: 중 | R67: 김덕규 | S67: 신주승 | T67: 2021-01-15 | U67: 2021-01-18 | V67: 2021-01-14 | W67: 2021-01-18 | Z67: 1 | AA67: 1 | AB67: 0 | AC67: 1 | AD67: 1 | AE67: 0 | AF67: 01
A68: 63 | E68: D1001 | F68: 회원상세 > 기본정보 | I68: /customer/detail/form | J68: R | K68: 하 | R68: 김덕규 | S68: 신주승 | T68: 2021-01-18 | U68: 2021-01-18 | V68: 2021-01-18 | W68: 2021-01-18 | Z68: 1 | AA68: 1 | AB68: 0 | AC68: 1 | AD68: 1 | AE68: 0 | AF68: 01
A69: 64 | E69: D1001 | F69: 회원상세 > 기본정보 > 비밀번호 초기화 | I69: /customer/detail/form | J69: CRU | K69: 하 | R69: 김덕규 | S69: 신주승 | T69: 2021-01-18 | U69: 2021-01-18 | V69: 2021-01-18 | W69: 2021-01-18 | Z69: 1 | AA69: 1 | AB69: 0 | AC69: 1 | AD69: 1 | AE69: 0 | AF69: 01
A70: 65 | E70: D1001 | F70: 회원상세 > 기본정보 > 우편번호 찾기 | I70: /customer/detail/form | J70: R | K70: 하 | R70: 김덕규 | S70: 신주승 | T70: 2021-01-18 | U70: 2021-01-18 | V70: 2021-01-18 | W70: 2021-01-18 | Z70: 1 | AA70: 1 | AB70: 0 | AC70: 1 | AD70: 1 | AE70: 0 | AF70: 01
A71: 66 | E71: D1001 | F71: 회원상세 > 기본정보 > LMS 전송 | I71: /customer/detail/form | J71: CRU | K71: 하 | R71: 김덕규 | S71: 신주승 | T71: 2021-01-19 | U71: 2021-01-19 | V71: 2021-01-19 | W71: 2021-01-19 | Y71: LMS 모듈 붙이고 확인 | Z71: 1 | AA71: 1 | AB71: 0 | AC71: 1 | AD71: 1 | AE71: 0 | AF71: 01
A72: 67 | E72: D1001 | F72: 회원상세 > 기본정보 > 번호변경 | I72: /customer/detail/form | J72: CRU | K72: 하 | R72: 김덕규 | S72: 신주승 | T72: 2021-01-25 | U72: 2021-01-25 | V72: 2021-01-25 | W72: 2021-01-25 | Y72: 알림톡 모듈 붙이고 확인 | Z72: 1 | AA72: 1 | AB72: 0 | AC72: 1 | AD72: 1 | AE72: 0 | AF72: 01
A73: 68 | E73: D1001 | F73: 회원상세 > 기본정보 > 이메일 발송 | I73: /customer/detail/form | J73: CRU | K73: 하 | R73: 김덕규 | S73: 신주승 | T73: 2021-01-19 | U73: 2021-01-19 | V73: 2021-01-19 | W73: 2021-01-19 | Y73: E-MAIL 모듈 붙이고 확인 | Z73: 1 | AA73: 1 | AB73: 0 | AC73: 1 | AD73: 1 | AE73: 0 | AF73: 01
A74: 69 | E74: D1001 | F74: 회원상세 > 기본정보 > 탈퇴처리 | I74: /customer/detail/form | J74: CRU | K74: 하 | R74: 김덕규 | S74: 신주승 | T74: 2021-01-25 | U74: 2021-01-25 | V74: 2021-01-25 | W74: 2021-01-25 | Z74: 1 | AA74: 1 | AB74: 0 | AC74: 1 | AD74: 1 | AE74: 0 | AF74: 01
A75: 70 | E75: D1001 | F75: 회원상세 > 기본정보 > 저장 | I75: /customer/detail/form | J75: R | K75: 하 | R75: 김덕규 | S75: 신주승 | T75: 2021-01-19 | U75: 2021-01-20 | V75: 2021-01-19 | W75: 2021-01-20 | Z75: 1 | AA75: 1 | AB75: 0 | AC75: 1 | AD75: 1 | AE75: 0 | AF75: 01
A76: 71 | E76: D1001 | F76: 회원상세 > 주문내역 | I76: /customer/detail/form | J76: R | K76: 하 | R76: 김덕규 | S76: 신주승 | T76: 2021-01-18 | U76: 2021-01-18 | V76: 2021-01-18 | W76: 2021-01-18 | Z76: 1 | AA76: 1 | AB76: 0 | AC76: 1 | AD76: 1 | AE76: 0 | AF76: 01
A77: 72 | E77: D1001 | F77: 회원상세 > 배송지 | I77: /customer/detail/form | J77: R | K77: 하 | R77: 김덕규 | S77: 신주승 | T77: 2021-01-19 | U77: 2021-01-20 | V77: 2021-01-19 | W77: 2021-01-20 | Z77: =IF(S77="",0,1) -> 1 | AA77: =IF(LEN(W77)>0,1,0) -> 1 | AB77: =Z77-AA77 -> 0 | AC77: =IF(U77="","",MONTH(U77)) -> 1 | AD77: =IF(W77="","",MONTH(W77)) -> 1 | AE77: =IF(W77<U77,0,W77-U77) -> 0 | AF77: =TEXT(AC77,"00") -> 01
A78: 73 | E78: D1001 | F78: 회원상세 > 배송지 > 저장 | I78: /customer/detail/form | J78: R | K78: 하 | R78: 김덕규 | S78: 신주승 | T78: 2021-01-21 | U78: 2021-01-21 | V78: 2021-01-21 | W78: 2021-01-21 | Z78: 1 | AA78: 1 | AB78: 0 | AC78: 1 | AD78: 1 | AE78: 0 | AF78: 01
A79: 74 | E79: D1001 | F79: 회원상세 > 쿠폰내역 | I79: /customer/detail/form | J79: CRU | K79: 하 | R79: 김덕규 | S79: 신주승 | T79: 2021-01-19 | U79: 2021-01-20 | V79: 2021-01-19 | W79: 2021-01-20 | Z79: 1 | AA79: 1 | AB79: 0 | AC79: 1 | AD79: 1 | AE79: 0 | AF79: 01
A80: 75 | E80: D1001 | F80: 회원상세 > 쿠폰내역 > 쿠폰지급 | I80: /customer/detail/form | J80: CRU | K80: 중 | R80: 김덕규 | S80: 신주승 | T80: 2021-01-26 | U80: 2021-01-26 | V80: 2021-01-28 | W80: 2021-01-29 | Z80: 1 | AA80: 1 | AB80: 0 | AC80: 1 | AD80: 1 | AE80: 3 | AF80: 01
A81: 76 | E81: D1001 | F81: 회원상세 > 포인트내역 | I81: /customer/detail/form | J81: CRU | K81: 하 | R81: 김덕규 | S81: 신주승 | T81: 2021-01-19 | U81: 2021-01-20 | V81: 2021-01-19 | W81: 2021-01-20 | Z81: 1 | AA81: 1 | AB81: 0 | AC81: 1 | AD81: 1 | AE81: 0 | AF81: 01
A82: 77 | E82: D1001 | F82: 회원상세 > 포인트내역 > 포인트 지급 | I82: /customer/detail/form | J82: CRU | K82: 중 | R82: 김덕규 | S82: 신주승 | T82: 2021-01-26 | U82: 2021-01-27 | V82: 2021-01-27 | W82: 2021-01-27 | Z82: 1 | AA82: 1 | AB82: 0 | AC82: 1 | AD82: 1 | AE82: 0 | AF82: 01
A83: 78 | E83: D1001 | F83: 회원상세 > 상품권내역 | I83: /customer/detail/form | J83: R | K83: 하 | R83: 김덕규 | S83: 신주승 | T83: 2021-01-21 | U83: 2021-01-21 | V83: 2021-01-21 | W83: 2021-01-21 | Z83: 1 | AA83: 1 | AB83: 0 | AC83: 1 | AD83: 1 | AE83: 0 | AF83: 01
A84: 79 | E84: D1001 | F84: 회원상세 > 상품평내역 | I84: /customer/detail/form | J84: R | K84: 하 | R84: 김덕규 | S84: 신주승 | T84: 2021-01-21 | U84: 2021-01-21 | V84: 2021-01-21 | W84: 2021-01-21 | Z84: 1 | AA84: 1 | AB84: 0 | AC84: 1 | AD84: 1 | AE84: 0 | AF84: 01
A85: 80 | E85: D1001 | F85: 회원상세 > 1대1문의 | I85: /customer/detail/form | J85: R | K85: 하 | R85: 김덕규 | S85: 신주승 | T85: 2021-01-22 | U85: 2021-01-22 | V85: 2021-01-22 | W85: 2021-01-22 | Z85: 1 | AA85: 1 | AB85: 0 | AC85: 1 | AD85: 1 | AE85: 0 | AF85: 01
A86: 81 | E86: D1001 | F86: 회원상세 > 상품문의 | I86: /customer/detail/form | J86: R | K86: 하 | R86: 김덕규 | S86: 신주승 | T86: 2021-01-22 | U86: 2021-01-22 | V86: 2021-01-22 | W86: 2021-01-22 | Z86: 1 | AA86: 1 | AB86: 0 | AC86: 1 | AD86: 1 | AE86: 0 | AF86: 01
A87: 82 | E87: D1001 | F87: 회원상세 > 접촉이력 | I87: /customer/detail/form | J87: CR | K87: 하 | R87: 김덕규 | S87: 신주승 | T87: 2021-01-22 | U87: 2021-01-22 | V87: 2021-01-22 | W87: 2021-01-22 | Z87: 1 | AA87: 1 | AB87: 0 | AC87: 1 | AD87: 1 | AE87: 0 | AF87: 01
A88: 83 | E88: D1001 | F88: 회원상세 > 접촉이력 > 저장 | I88: /customer/detail/form | J88: CR | K88: 하 | R88: 김덕규 | S88: 신주승 | T88: 2021-01-22 | U88: 2021-01-22 | V88: 2021-01-22 | W88: 2021-01-22 | Z88: 1 | AA88: 1 | AB88: 0 | AC88: 1 | AD88: 1 | AE88: 0 | AF88: 01
A89: 84 | E89: D1001 | F89: 회원상세 > 회원등급변경이력 | I89: /customer/detail/form | J89: R | K89: 하 | R89: 김덕규 | S89: 신주승 | T89: 2021-01-25 | U89: 2021-01-25 | V89: 2021-01-25 | W89: 2021-01-25 | Z89: 1 | AA89: 1 | AB89: 0 | AC89: 1 | AD89: 1 | AE89: 0 | AF89: 01
A90: 85 | D90: 상담관리 | E90: D2001 | F90: 1:1문의관리 | I90: /customer/onetoone/qna/form | J90: CRUD | K90: 상 | R90: 김덕규 | S90: 김덕규 | T90: 2020-12-24 | U90: 2020-12-25 | V90: 2020-12-24 | W90: 2020-12-25 | Z90: 1 | AA90: 1 | AB90: 0 | AC90: 12 | AD90: 12 | AE90: 0 | AF90: 12
A91: 86 | E91: D2001 | F91: 1:1문의관리 > 상세 팝업 | I91: /customer/onetoone/qna/detail/form | J91: CRU | K91: 중 | R91: 김덕규 | S91: 김덕규 | T91: 2020-12-24 | U91: 2020-12-25 | V91: 2020-12-24 | W91: 2020-12-25 | Y91: 1. 답변문구 템플릿 미확인 2. 알림톡 발송 미구현 | Z91: 1 | AA91: 1 | AB91: 0 | AC91: 12 | AD91: 12 | AE91: 0 | AF91: 12
A92: 87 | E92: D2002 | F92: 상품문의관리 | I92: /customer/goods/qna/form | J92: CRUD | K92: 상 | R92: 김덕규 | S92: 김덕규 | T92: 2020-12-24 | U92: 2020-12-25 | V92: 2020-12-24 | W92: 2020-12-25 | Z92: 1 | AA92: 1 | AB92: 0 | AC92: 12 | AD92: 12 | AE92: 0 | AF92: 12
A93: 88 | E93: D2002 | F93: 상품문의관리 > 상세 팝업 | I93: /customer/goods/qna/detail/form | J93: CRU | K93: 중 | R93: 김덕규 | S93: 김덕규 | T93: 2020-12-24 | U93: 2020-12-25 | V93: 2020-12-24 | W93: 2020-12-25 | Y93: 1. 답변문구 템플릿 미확인 2. 알림톡 발송 미구현 | Z93: 1 | AA93: 1 | AB93: 0 | AC93: 12 | AD93: 12 | AE93: 0 | AF93: 12
A94: 89 | D94: 마케팅 | E94: D3001 | F94: 기획전관리 | I94: /marketing/plan/list/form | J94: CRUD | K94: 상 | R94: 김덕규 | S94: 김소원 | T94: 2021-02-08 | U94: 2021-02-23 | V94: 2021-02-08 | W94: 2021-02-23 | Z94: 1 | AA94: 1 | AB94: 0 | AC94: 2 | AD94: 2 | AE94: 0 | AF94: 02
A95: 90 | E95: D3001 | F95: 기획전 관리 > 웹 수정/등록 팝업 화면 | I95: /marketing/plan/webdetail/form | J95: CRU | K95: 중 | R95: 김덕규 | S95: 김소원 | T95: 2021-02-08 | U95: 2021-02-23 | V95: 2021-02-08 | W95: 2021-02-23 | Z95: 1 | AA95: 1 | AB95: 0 | AC95: 2 | AD95: 2 | AE95: 0 | AF95: 02
A96: 91 | E96: D3001 | F96: 기획전 관리 > 웹 수정/등록 팝업 화면 > 기획전 복사 | I96: /marketing/plan/corner/copy/list/form | J96: CRUD | K96: 중 | R96: 김덕규 | S96: 김소원 | T96: 2021-02-08 | U96: 2021-02-23 | V96: 2021-02-08 | W96: 2021-02-23 | Z96: 1 | AA96: 1 | AB96: 0 | AC96: 2 | AD96: 2 | AE96: 0 | AF96: 02
A97: 92 | E97: D3001 | F97: 기획전 관리 > 기획전 관리 팝업 | I97: /marketing/plan/corner/list/form | J97: CRUD | K97: 중 | R97: 김덕규 | S97: 김소원 | T97: 2021-02-17 | U97: 2021-02-18 | V97: 2021-02-17 | W97: 2021-02-18 | Z97: 1 | AA97: 1 | AB97: 0 | AC97: 2 | AD97: 2 | AE97: 0 | AF97: 02
A98: 93 | E98: D3001 | F98: 기획전 관리 > 기획전 관리 팝업 > 코너 복사 | I98: /marketing/plan/corner/copy/list/form | J98: CRU | K98: 중 | R98: 김덕규 | S98: 김소원 | T98: 2021-02-17 | U98: 2021-02-18 | V98: 2021-02-17 | W98: 2021-02-18 | Z98: 1 | AA98: 1 | AB98: 0 | AC98: 2 | AD98: 2 | AE98: 0 | AF98: 02
A99: 94 | E99: D3001 | F99: 기획전 관리 > 기획전 관리 팝업 > 코너 상품 | I99: /marketing/plan/conner/list/form | J99: CRUD | K99: 중 | R99: 김덕규 | S99: 김소원 | T99: 2021-02-17 | U99: 2021-02-18 | V99: 2021-02-17 | W99: 2021-02-18 | Z99: 1 | AA99: 1 | AB99: 0 | AC99: 2 | AD99: 2 | AE99: 0 | AF99: 02
A100: 95 | E100: D3001 | F100: 기획전 관리 > 템플릿관리 | J100: CRUD | K100: 상 | R100: 김덕규 | S100: 김소원 | T100: 2021-02-22 | U100: 2021-03-03 | V100: 2021-02-22 | W100: 2021-03-03 | Z100: 1 | AA100: 1 | AB100: 0 | AC100: 3 | AD100: 3 | AE100: 0 | AF100: 03
A101: 96 | E101: D3001 | F101: 기획전 조회 팝업 | I101: /marketing/plan/list/popup | J101: R | K101: 하 | R101: 김덕규 | S101: 김소원 | T101: 2021-02-16 | U101: 2021-02-16 | V101: 2021-02-16 | W101: 2021-02-16 | Z101: 1 | AA101: 1 | AB101: 0 | AC101: 2 | AD101: 2 | AE101: 0 | AF101: 02
A102: 97 | E102: D3001 | F102: 기획전 관리 > 기획전참여내역 팝업 | J102: R | K102: 하 | R102: 김덕규 | S102: 김소원 | T102: 2021-05-17 | U102: 2021-05-26 | V102: 2021-05-24 | W102: 2021-05-24 | Z102: 1 | AA102: 1 | AB102: 0 | AC102: 5 | AD102: 5 | AE102: 0 | AF102: 05
A103: 98 | E103: D3002 | F103: 상품평관리 | I103: /marketing/review/form | J103: CRU | K103: 상 | R103: 김덕규 | S103: 김덕규 | T103: 2021-02-11 | U103: 2021-04-23 | V103: 2021-02-11 | W103: 2021-04-26 | Y103: 1.동영상상품평은 승인 시 포인트 지급 (완료) 2.베스트상품평 선정 (완료) | Z103: 1 | AA103: 1 | AB103: 0 | AC103: 4 | AD103: 4 | AE103: 3 | AF103: 04
A104: 99 | E104: D3002 | F104: 상품평관리 > 상품평 상세 | I104: /marketing/review/detail/form | J104: RU | K104: 중 | R104: 김덕규 | S104: 김덕규 | T104: 2021-04-22 | U104: 2021-04-23 | V104: 2021-04-22 | W104: 2021-04-29 | Z104: 1 | AA104: 1 | AB104: 0 | AC104: 4 | AD104: 4 | AE104: 6 | AF104: 04
A105: 100 | E105: D3003 | F105: 포인트 등록/상세 팝업 | I105: /marketing/point/detail/form | J105: CRU | K105: 하 | R105: 김덕규 | S105: 신주승 | T105: 2021-01-26 | U105: 2021-01-27 | V105: 2021-01-26 | W105: 2021-01-27 | Z105: 1 | AA105: 1 | AB105: 0 | AC105: 1 | AD105: 1 | AE105: 0 | AF105: 01
A106: 101 | E106: D3004 | F106: 쿠폰관리 > 목록 | I106: /marketing/coupon/list/form | J106: R | K106: 하 | R106: 김덕규 | S106: 전상목 | T106: 2021-01-08 | U106: 2021-01-08 | V106: 2021-01-08 | W106: 2021-01-08 | Z106: 1 | AA106: 1 | AB106: 0 | AC106: 1 | AD106: 1 | AE106: 0 | AF106: 01
A107: 102 | E107: D3004 | F107: 쿠폰관리 > 쿠폰 등록 팝업 | I107: /marketing/coupon/popup/form | J107: R | K107: 상 | R107: 김덕규 | S107: 전상목 | T107: 2021-01-08 | U107: 2021-01-13 | V107: 2021-01-08 | W107: 2021-01-14 | Z107: 1 | AA107: 1 | AB107: 0 | AC107: 1 | AD107: 1 | AE107: 1 | AF107: 01
A108: 103 | E108: D3004 | F108: 쿠폰관리 > 쿠폰 등록 팝업 > 적용상품 | I108: /marketing/coupon/popup/list | J108: R | K108: 중 | R108: 김덕규 | S108: 전상목 | T108: 2021-01-08 | U108: 2021-01-12 | V108: 2021-01-08 | W108: 2021-01-14 | Z108: 1 | AA108: 1 | AB108: 0 | AC108: 1 | AD108: 1 | AE108: 2 | AF108: 01
A109: 104 | E109: D3004 | F109: 쿠폰관리 > 쿠폰 등록 팝업 > 발급받은회원목록팝업 | I109: /marketing/coupon/pubCust/popup/form | J109: R | K109: 하 | R109: 김덕규 | S109: 최수빈 | T109: 2021-02-03 | U109: 2021-02-03 | V109: 2021-02-03 | W109: 2021-02-03 | Z109: 1 | AA109: 1 | AB109: 0 | AC109: 2 | AD109: 2 | AE109: 0 | AF109: 02
A110: 105 | E110: D3004 | F110: 쿠폰관리 > 쿠폰 등록 팝업 > 쿠폰발행팝업 | I110: /marketing/coupon/cpnPub/popup/form | J110: CRUD | K110: 상 | R110: 김덕규 | S110: 전상목 | T110: 2021-01-20 | U110: 2021-01-22 | V110: 2021-01-15 | W110: 2021-01-22 | Z110: 1 | AA110: 1 | AB110: 0 | AC110: 1 | AD110: 1 | AE110: 0 | AF110: 01
A111: 106 | E111: D3004 | F111: 쿠폰관리 > 선착순 쿠폰 | I111: /marketing/coupon/limitedtime/coupon/list | J111: CRUD | K111: 중 | R111: 김덕규 | S111: 최수빈 | T111: 2021-02-01 | U111: 2021-02-08 | V111: 2021-02-01 | W111: 2021-02-08 | Z111: 1 | AA111: 1 | AB111: 0 | AC111: 2 | AD111: 2 | AE111: 0 | AF111: 02
A112: 107 | E112: D3004 | F112: 쿠폰관리 > 상세/수정 | J112: RU | K112: 상 | R112: 김덕규 | S112: 전상목 | T112: 2021-01-14 | U112: 2021-01-15 | V112: 2021-01-15 | W112: 2021-01-22 | Z112: 1 | AA112: 1 | AB112: 0 | AC112: 1 | AD112: 1 | AE112: 7 | AF112: 01
A113: 108 | F113: 쿠폰 조회 팝업 | I113: /marketing/coupon/retrieve/popup/form | J113: R | K113: 하 | R113: 김덕규 | S113: 김덕규 | T113: 2021-01-08 | U113: 2021-01-08 | V113: 2021-01-08 | W113: 2021-01-08 | Z113: 1 | AA113: 1 | AB113: 0 | AC113: 1 | AD113: 1 | AE113: 0 | AF113: 01
A114: 109 | F114: 시리얼 및 난수 쿠폰 생성 및 수정 | I114: /marketing/coupon/random/list/form | J114: CRU | K114: 중 | R114: 김덕규 | S114: 이태영 | T114: 2021-01-25 | U114: 2021-01-28 | V114: 2021-01-26 | W114: 2021-01-28 | Z114: 1 | AA114: 1 | AB114: 0 | AC114: 1 | AD114: 1 | AE114: 0 | AF114: 01
A115: 110 | E115: D3006 | F115: 핫딜관리 | I115: /marketing/socialshopping/list/Form | J115: CRU | K115: 상 | R115: 김덕규 | S115: 김소원 | T115: 2021-02-24 | U115: 2021-02-26 | V115: 2021-02-24 | W115: 2021-02-26 | Z115: 1 | AA115: 1 | AB115: 0 | AC115: 2 | AD115: 2 | AE115: 0 | AF115: 02
A116: 111 | E116: D3007 | F116: POLL관리 | I116: /marketing/poll/list/Form | J116: CRU | K116: 상 | R116: 김덕규 | S116: 김소원 | T116: 2021-03-02 | U116: 2021-03-03 | V116: 2021-03-02 | W116: 2021-03-02 | Z116: 1 | AA116: 1 | AB116: 0 | AC116: 3 | AD116: 3 | AE116: 0 | AF116: 03
A117: 112 | E117: D3010 | F117: 카드무이자할부관리 | I117: /marketing/card/interest/form | J117: CRU | K117: 중 | R117: 김덕규 | S117: 김은실 | T117: 2021-01-29 | U117: 2021-02-03 | V117: 2021-01-29 | W117: 2021-02-03 | Z117: 1 | AA117: 1 | AB117: 0 | AC117: 2 | AD117: 2 | AE117: 0 | AF117: 02
A118: 113 | F118: 카드무이자할부관리 > 등록팝업 | I118: /marketing/card/interest/popup/form | J118: CRU | K118: 중 | R118: 김덕규 | S118: 김은실 | T118: 2021-01-29 | U118: 2021-02-03 | V118: 2021-01-29 | W118: 2021-02-03 | Z118: 1 | AA118: 1 | AB118: 0 | AC118: 2 | AD118: 2 | AE118: 0 | AF118: 02
A119: 114 | E119: D3011 | F119: 카드프로모션관리 | I119: /marketing/card/promotion/form | J119: CRU | K119: 중 | R119: 김덕규 | S119: 김은실 | T119: 2021-02-03 | U119: 2021-02-04 | V119: 2021-02-03 | W119: 2021-02-04 | Z119: 1 | AA119: 1 | AB119: 0 | AC119: 2 | AD119: 2 | AE119: 0 | AF119: 02
A120: 115 | F120: 카드프로모션관리 > 등록팝업 | I120: /marketing/card/promotion/popup/form | J120: CRU | K120: 중 | R120: 김덕규 | S120: 김은실 | T120: 2021-02-03 | U120: 2021-02-04 | V120: 2021-02-03 | W120: 2021-02-04 | Z120: 1 | AA120: 1 | AB120: 0 | AC120: 2 | AD120: 2 | AE120: 0 | AF120: 02
A121: 116 | E121: D3008 | F121: 사은품 프로모션관리 | I121: /marketing/freeGoods/promotion/form | J121: CRU | K121: 상 | R121: 김덕규 | S121: 이태영 | T121: 2021-01-14 | U121: 2021-01-20 | V121: 2021-01-14 | W121: 2021-01-21 | Z121: 1 | AA121: 1 | AB121: 0 | AC121: 1 | AD121: 1 | AE121: 1 | AF121: 01
A122: 117 | F122: 사은품 프로모션관리 > 등록팝업 | J122: CRU | K122: 상 | R122: 김덕규 | S122: 이태영 | T122: 2021-01-14 | U122: 2021-01-20 | V122: 2021-01-14 | W122: 2021-01-21 | Z122: 1 | AA122: 1 | AB122: 0 | AC122: 1 | AD122: 1 | AE122: 1 | AF122: 01
A123: 118 | E123: D3009 | F123: 다다익선 관리 | I123: /marketing/morebetter/form | J123: CRU | K123: 상 | R123: 김덕규 | S123: 최수빈 | T123: 2021-01-06 | U123: 2021-01-08 | V123: 2021-01-06 | W123: 2021-01-07 | Z123: 1 | AA123: 1 | AB123: 0 | AC123: 1 | AD123: 1 | AE123: 0 | AF123: 01
A124: 119 | F124: 다다익선 관리 > 등록 팝업 | I124: /marketing/morebetterRegPopup/form | J124: CRU | K124: 상 | R124: 김덕규 | S124: 최수빈 | T124: 2021-01-11 | U124: 2021-02-10 | V124: 2021-01-08 | W124: 2021-02-08 | Z124: 1 | AA124: 1 | AB124: 0 | AC124: 2 | AD124: 2 | AE124: 0 | AF124: 02
A125: 120 | F125: 상품권 대량 등록 | J125: CRU | K125: 상 | R125: 김덕규 | S125: 신주승 | T125: 2021-05-07 | U125: 2021-05-12 | V125: 2021-05-07 | W125: 2021-05-13 | Z125: 1 | AA125: 1 | AB125: 0 | AC125: 5 | AD125: 5 | AE125: 1 | AF125: 05
A126: 121 | D126: 메일관리 | F126: 메일헤더푸터관리 | J126: RU | K126: 하 | R126: 김덕규 | S126: 최수환 | T126: 2021-02-01 | U126: 2021-02-03 | V126: 2021-02-01 | W126: 2021-02-04 | Z126: 1 | AA126: 1 | AB126: 0 | AC126: 2 | AD126: 2 | AE126: 1 | AF126: 02
A127: 122 | F127: 메일헤더푸터관리 > 등록/상세 팝업 | J127: CRU | K127: 하 | R127: 김덕규 | S127: 최수환 | T127: 2021-02-01 | U127: 2021-02-03 | V127: 2021-02-01 | W127: 2021-02-04 | Z127: 1 | AA127: 1 | AB127: 0 | AC127: 2 | AD127: 2 | AE127: 1 | AF127: 02
A128: 123 | F128: 마케팅메일템플릿관리 | J128: RU | K128: 하 | R128: 김덕규 | S128: 최수환 | T128: 2021-02-08 | U128: 2021-02-10 | V128: 2021-02-08 | W128: 2021-02-10 | Z128: 1 | AA128: 1 | AB128: 0 | AC128: 2 | AD128: 2 | AE128: 0 | AF128: 02
A129: 124 | F129: 마케팅메일템플릿관리 > 등록/상세 팝업 | J129: CRU | K129: 하 | R129: 김덕규 | S129: 최수환 | T129: 2021-02-15 | U129: 2021-02-19 | V129: 2021-02-15 | W129: 2021-02-19 | Z129: 1 | AA129: 1 | AB129: 0 | AC129: 2 | AD129: 2 | AE129: 0 | AF129: 02
A130: 125 | F130: 마케팅메일템플릿관리 > 미리보기 | J130: R | K130: 하 | R130: 김덕규 | S130: 최수환 | T130: 2021-02-22 | U130: 2021-02-24 | V130: 2021-02-22 | W130: 2021-02-24 | Z130: 1 | AA130: 1 | AB130: 0 | AC130: 2 | AD130: 2 | AE130: 0 | AF130: 02
A131: 126 | C131: 주문/배송 | D131: 주문목록 | F131: 주문목록 > 주문목록조회 | J131: R | K131: 상 | R131: 전석훈 | S131: 전석훈 | T131: 2020-11-23 | U131: 2020-12-01 | V131: 2020-11-23 | W131: 2020-12-04 | Z131: 1 | AA131: 1 | AB131: 0 | AC131: 12 | AD131: 12 | AE131: 3 | AF131: 12
A132: 127 | F132: 주문목록 > 엑셀조회 | J132: R | K132: 상 | R132: 전석훈 | S132: 전석훈 | T132: 2020-11-23 | U132: 2020-12-01 | V132: 2020-11-23 | W132: 2020-12-04 | Z132: 1 | AA132: 1 | AB132: 0 | AC132: 12 | AD132: 12 | AE132: 3 | AF132: 12
A133: 128 | F133: 주문목록 > 엑셀다운로드 | J133: R | K133: 상 | R133: 전석훈 | S133: 전석훈 | T133: 2020-11-23 | U133: 2020-12-01 | V133: 2020-11-23 | W133: 2020-12-04 | Z133: 1 | AA133: 1 | AB133: 0 | AC133: 12 | AD133: 12 | AE133: 3 | AF133: 12
A134: 129 | D134: 입점업체미발주목록조회 | F134: 주문목록 > 입점업체미발주목록조회 | J134: R | K134: 상 | R134: 전석훈 | S134: 전석훈 | T134: 2020-11-23 | U134: 2020-12-01 | V134: 2020-11-23 | W134: 2020-12-04 | Z134: 1 | AA134: 1 | AB134: 0 | AC134: 12 | AD134: 12 | AE134: 3 | AF134: 12
A135: 130 | F135: 주문목록 > 입점업체송장업로드 | J135: CRU | K135: 상 | R135: 전석훈 | S135: 전석훈 | T135: 2020-11-23 | U135: 2020-12-01 | V135: 2020-11-23 | W135: 2020-12-04 | Z135: 1 | AA135: 1 | AB135: 0 | AC135: 12 | AD135: 12 | AE135: 3 | AF135: 12
A136: 131 | D136: 주문상세 | F136: 주문상세 > 주문기본정보조회 | J136: R | K136: 상 | R136: 전석훈 | S136: 전석훈 | T136: 2020-12-03 | U136: 2020-12-22 | V136: 2020-12-03 | W136: 2020-12-18 | Z136: 1 | AA136: 1 | AB136: 0 | AC136: 12 | AD136: 12 | AE136: 0 | AF136: 12
A137: 132 | F137: 주문상세 > 주문상세정보조회 (단품기준) | J137: R | K137: 상 | R137: 전석훈 | S137: 전석훈 | T137: 2020-12-03 | U137: 2020-12-22 | V137: 2020-12-03 | W137: 2020-12-18 | Z137: 1 | AA137: 1 | AB137: 0 | AC137: 12 | AD137: 12 | AE137: 0 | AF137: 12
A138: 133 | F138: 주문상세 > 배송정보 | J138: R | K138: 상 | R138: 전석훈 | S138: 전석훈 | T138: 2020-12-03 | U138: 2020-12-22 | V138: 2020-12-03 | W138: 2020-12-18 | Z138: 1 | AA138: 1 | AB138: 0 | AC138: 12 | AD138: 12 | AE138: 0 | AF138: 12
A139: 134 | F139: 주문상세 > 결제정보 | J139: R | K139: 상 | R139: 전석훈 | S139: 전석훈 | T139: 2020-12-03 | U139: 2020-12-22 | V139: 2020-12-03 | W139: 2020-12-18 | Z139: 1 | AA139: 1 | AB139: 0 | AC139: 12 | AD139: 12 | AE139: 0 | AF139: 12
A140: 135 | F140: 주문상세 > 배송비정보 | J140: R | K140: 상 | R140: 전석훈 | S140: 전석훈 | T140: 2020-12-03 | U140: 2020-12-22 | V140: 2020-12-03 | W140: 2020-12-18 | Z140: 1 | AA140: 1 | AB140: 0 | AC140: 12 | AD140: 12 | AE140: 0 | AF140: 12
A141: 136 | F141: 주문상세 > (취소/반품/교환) 요청 내역 | J141: R | K141: 상 | R141: 전석훈 | S141: 전석훈 | T141: 2020-12-03 | U141: 2020-12-22 | V141: 2021-01-04 | W141: 2021-01-08 | Z141: =IF(S141="",0,1) -> 1 | AA141: =IF(LEN(W141)>0,1,0) -> 1 | AB141: =Z141-AA141 -> 0 | AC141: =IF(U141="","",MONTH(U141)) -> 12 | AD141: =IF(W141="","",MONTH(W141)) -> 1 | AE141: =IF(W141<U141,0,W141-U141) -> 17 | AF141: =TEXT(AC141,"00") -> 12
A142: 137 | F142: 주문상세 > 환불정보 | J142: R | K142: 상 | R142: 전석훈 | S142: 전석훈 | T142: 2020-12-03 | U142: 2020-12-22 | V142: 2021-01-04 | W142: 2021-01-08 | Z142: 1 | AA142: 1 | AB142: 0 | AC142: 12 | AD142: 1 | AE142: 17 | AF142: 12
A143: 138 | F143: 주문상세 > 환불계좌정보 | J143: R | K143: 상 | R143: 전석훈 | S143: 전석훈 | T143: 2020-12-03 | U143: 2020-12-22 | V143: 2021-01-04 | W143: 2021-01-08 | Z143: 1 | AA143: 1 | AB143: 0 | AC143: 12 | AD143: 1 | AE143: 17 | AF143: 12
A144: 139 | F144: 주문상세 > 상담내역 | J144: R | K144: 상 | R144: 전석훈 | S144: 전석훈 | T144: 2020-12-03 | U144: 2020-12-22 | V144: 2020-12-03 | W144: 2020-12-18 | Z144: 1 | AA144: 1 | AB144: 0 | AC144: 12 | AD144: 12 | AE144: 0 | AF144: 12
A145: 140 | F145: 주문상세 > 관리자메모내역 | J145: R | K145: 상 | R145: 전석훈 | S145: 전석훈 | T145: 2020-12-03 | U145: 2020-12-22 | V145: 2020-12-03 | W145: 2020-12-18 | Z145: 1 | AA145: 1 | AB145: 0 | AC145: 12 | AD145: 12 | AE145: 0 | AF145: 12
A146: 141 | F146: 주문상세 > 사은품내역 | J146: R | K146: 상 | R146: 전석훈 | S146: 전석훈 | T146: 2020-12-03 | U146: 2020-12-22 | V146: 2021-01-11 | W146: 2021-01-15 | Z146: 1 | AA146: 1 | AB146: 0 | AC146: 12 | AD146: 1 | AE146: 24 | AF146: 12
A147: 142 | F147: 주문상세 > 취소/반품/교환 추가배송비 개별결제 정보 | J147: R | K147: 상 | R147: 전석훈 | S147: 전석훈 | T147: 2021-04-19 | U147: 2021-05-15 | V147: 2021-05-11 | W147: 2021-05-15 | Z147: 1 | AA147: 1 | AB147: 0 | AC147: 5 | AD147: 5 | AE147: 0 | AF147: 05
A148: 143 | F148: 주문상세 > 주문취소신청철회 | J148: R | K148: 상 | R148: 전석훈 | S148: 전석훈 | T148: 2020-12-03 | U148: 2020-12-22 | V148: 2021-01-11 | W148: 2021-01-15 | Z148: 1 | AA148: 1 | AB148: 0 | AC148: 12 | AD148: 1 | AE148: 24 | AF148: 12
A149: 144 | F149: 주문상세 > 주문반품신청철회 | J149: R | K149: 상 | R149: 전석훈 | S149: 전석훈 | T149: 2020-12-03 | U149: 2020-12-22 | V149: 2021-01-11 | W149: 2021-01-15 | Z149: 1 | AA149: 1 | AB149: 0 | AC149: 12 | AD149: 1 | AE149: 24 | AF149: 12
A150: 145 | F150: 주문상세 > 주문교환신청철회 | J150: R | K150: 상 | R150: 전석훈 | S150: 전석훈 | T150: 2020-12-03 | U150: 2020-12-22 | V150: 2021-01-11 | W150: 2021-01-15 | Z150: 1 | AA150: 1 | AB150: 0 | AC150: 12 | AD150: 1 | AE150: 24 | AF150: 12
A151: 146 | F151: 주문상세 > 주문취소, 반품, 교환 신청 철회 시 선결제 환불 | J151: R | K151: 상 | R151: 전석훈 | S151: 전석훈 | T151: 2021-04-19 | U151: 2021-05-15 | V151: 2021-05-18 | W151: 2021-05-22 | Z151: 1 | AA151: 1 | AB151: 0 | AC151: 5 | AD151: 5 | AE151: 7 | AF151: 05
A152: 147 | D152: 쿠폰사용내역 | F152: 주문상세 > 쿠폰사용내역 팝업 | J152: R | K152: 상 | R152: 전석훈 | S152: 전석훈 | T152: 2020-12-23 | U152: 2020-12-24 | V152: 2020-12-15 | W152: 2020-12-15 | Z152: 1 | AA152: 1 | AB152: 0 | AC152: 12 | AD152: 12 | AE152: 0 | AF152: 12
A153: 148 | D153: 포인트사용내역 | F153: 주문상세 > 포인트사용내역 팝업 | J153: R | K153: 상 | R153: 전석훈 | S153: 전석훈 | T153: 2020-12-28 | U153: 2020-12-29 | V153: 2020-12-16 | W153: 2020-12-16 | Z153: 1 | AA153: 1 | AB153: 0 | AC153: 12 | AD153: 12 | AE153: 0 | AF153: 12
A154: 149 | D154: 상품권사용내역 | F154: 주문상세 > 상품권사용내역 팝업 | J154: R | K154: 상 | R154: 전석훈 | S154: 전석훈 | T154: 2020-12-30 | U154: 2020-12-31 | V154: 2020-12-17 | W154: 2020-12-17 | Z154: 1 | AA154: 1 | AB154: 0 | AC154: 12 | AD154: 12 | AE154: 0 | AF154: 12
A155: 150 | D155: 다다익선적용내역 | F155: 주문상세 > 다다익선적용내역 팝업 | J155: R | K155: 상 | R155: 전석훈 | S155: 전석훈 | T155: 2021-01-04 | U155: 2021-01-05 | V155: 2021-01-18 | W155: 2021-01-22 | Z155: 1 | AA155: 1 | AB155: 0 | AC155: 1 | AD155: 1 | AE155: 17 | AF155: 01
A156: 151 | D156: 주문상세이력조회 | F156: 주문상세 > 주문상세이력 팝업 | J156: R | K156: 상 | R156: 전석훈 | S156: 전석훈 | T156: 2021-01-06 | U156: 2021-01-07 | V156: 2020-12-18 | W156: 2020-12-18 | Z156: 1 | AA156: 1 | AB156: 0 | AC156: 1 | AD156: 12 | AE156: 0 | AF156: 01
A157: 152 | D157: 배송지정보수정 | F157: 주문상세 > 배송지정보수정 팝업 | J157: R | K157: 상 | R157: 전석훈 | S157: 전석훈 | T157: 2021-01-12 | U157: 2021-01-13 | V157: 2021-01-18 | W157: 2021-01-22 | Z157: 1 | AA157: 1 | AB157: 0 | AC157: 1 | AD157: 1 | AE157: 9 | AF157: 01
A158: 153 | D158: 회수지정보수정 | F158: 주문상세 > 회수지정보수정 팝업 | J158: R | K158: 상 | R158: 전석훈 | S158: 전석훈 | T158: 2021-04-19 | U158: 2021-05-15 | V158: 2021-05-18 | W158: 2021-05-22 | Z158: 1 | AA158: 1 | AB158: 0 | AC158: 5 | AD158: 5 | AE158: 7 | AF158: 05
A159: 154 | D159: 상품 사이즈 변경 | F159: 주문상세 > 수량, 사이즈 변경 팝업 | J159: R | K159: 상 | R159: 전석훈 | S159: 전석훈 | T159: 2021-01-18 | U159: 2021-01-20 | V159: 2020-12-21 | W159: 2020-12-21 | Z159: 1 | AA159: 1 | AB159: 0 | AC159: 1 | AD159: 12 | AE159: 0 | AF159: 01
A160: 155 | D160: 관리자메모 | F160: 주문상세 > 관리자메모 등록, 조회, 수정, 삭제 팝업 | J160: R | K160: 상 | R160: 전석훈 | S160: 전석훈 | T160: 2021-01-21 | U160: 2021-01-25 | V160: 2021-01-18 | W160: 2021-01-22 | Z160: 1 | AA160: 1 | AB160: 0 | AC160: 1 | AD160: 1 | AE160: 0 | AF160: 01
A161: 156 | D161: 배송정보추적 | F161: 주문상세 > 송장번호 기준 배송추적 팝업 | J161: R | K161: 상 | R161: 전석훈 | S161: 전석훈 | T161: 2021-01-21 | U161: 2021-01-25 | V161: 2021-06-14 | W161: 2021-06-15
A162: 157 | D162: 환불계좌등록 | F162: 주문상세 > 환불계좌 등록, 조회, 수정, 삭제, 계좌인증 팝업 | J162: R | K162: 상 | R162: 전석훈 | S162: 전석훈 | T162: 2021-01-26 | U162: 2021-01-27 | V162: 2021-01-18 | W162: 2021-01-22 | Z162: 1 | AA162: 1 | AB162: 0 | AC162: 1 | AD162: 1 | AE162: 0 | AF162: 01
A163: 158 | D163: 주문취소 | F163: 주문상세 > 주문취소 > 전체취소완료 | J163: R | K163: 상 | R163: 전석훈 | S163: 김지철 | T163: 2021-01-12 | U163: 2021-01-21 | V163: 2021-01-18 | W163: 2021-01-22 | Z163: 1 | AA163: 1 | AB163: 0 | AC163: 1 | AD163: 1 | AE163: 1 | AF163: 01
A164: 159 | F164: 주문상세 > 주문취소 > 부분취소완료 | J164: R | K164: 상 | R164: 전석훈 | S164: 김지철 | T164: 2021-01-12 | U164: 2021-01-21 | V164: 2021-01-18 | W164: 2021-01-22 | Z164: 1 | AA164: 1 | AB164: 0 | AC164: 1 | AD164: 1 | AE164: 1 | AF164: 01
A165: 160 | F165: 주문상세 > 주문취소 > 무료배송이하로 적용될때 배송비 부과 | J165: R | K165: 상 | R165: 전석훈 | S165: 김지철 | T165: 2021-01-12 | U165: 2021-01-21 | V165: 2021-01-18 | W165: 2021-01-22 | Z165: 1 | AA165: 1 | AB165: 0 | AC165: 1 | AD165: 1 | AE165: 1 | AF165: 01
A166: 161 | F166: 주문상세 > 주문취소 > 전체취소시 사은품 취소 | J166: R | K166: 상 | R166: 전석훈 | S166: 김지철 | T166: 2021-01-12 | U166: 2021-01-21 | V166: 2021-01-18 | W166: 2021-01-22 | Z166: 1 | AA166: 1 | AB166: 0 | AC166: 1 | AD166: 1 | AE166: 1 | AF166: 01
A167: 162 | F167: 주문상세 > 주문취소 > 부분취소시 해당 사은품 취소 | J167: R | K167: 상 | R167: 전석훈 | S167: 김지철 | T167: 2021-01-12 | U167: 2021-01-21 | V167: 2021-01-18 | W167: 2021-01-22 | Z167: 1 | AA167: 1 | AB167: 0 | AC167: 1 | AD167: 1 | AE167: 1 | AF167: 01
A168: 163 | F168: 주문상세 > 주문취소 > 복수건 취소 기능 구현 | J168: R | K168: 상 | R168: 전석훈 | S168: 김지철 | T168: 2021-01-12 | U168: 2021-01-21 | V168: 2021-01-18 | W168: 2021-01-22 | Z168: 1 | AA168: 1 | AB168: 0 | AC168: 1 | AD168: 1 | AE168: 1 | AF168: 01
A169: 164 | F169: 주문상세 > 주문취소 > PG연동 | J169: R | K169: 상 | R169: 전석훈 | S169: 김지철 | T169: 2021-01-12 | U169: 2021-05-12 | V169: 2021-05-18 | W169: 2021-05-22 | Z169: 1 | AA169: 1 | AB169: 0 | AC169: 5 | AD169: 5 | AE169: 10 | AF169: 05
A170: 165 | F170: 주문상세 > 주문취소 > 사용포인트 원복 처리 | J170: R | K170: 상 | R170: 전석훈 | S170: 김지철 | T170: 2021-01-12 | U170: 2021-05-12 | V170: 2021-05-18 | W170: 2021-05-22 | Z170: 1 | AA170: 1 | AB170: 0 | AC170: 5 | AD170: 5 | AE170: 10 | AF170: 05
A171: 166 | F171: 주문상세 > 주문취소 > 사용쿠폰 원복 처리 (상품쿠폰) | J171: R | K171: 상 | R171: 전석훈 | S171: 김지철 | T171: 2021-01-12 | U171: 2021-05-12 | V171: 2021-05-18 | W171: 2021-05-22 | Z171: 1 | AA171: 1 | AB171: 0 | AC171: 5 | AD171: 5 | AE171: 10 | AF171: 05
A172: 167 | F172: 주문상세 > 주문취소 > 상품재고 원복 처리 | J172: R | K172: 상 | R172: 전석훈 | S172: 김지철 | T172: 2021-01-12 | U172: 2021-01-21 | V172: 2021-01-18 | W172: 2021-01-22 | Z172: 1 | AA172: 1 | AB172: 0 | AC172: 1 | AD172: 1 | AE172: 1 | AF172: 01
A173: 168 | D173: 주문반품 | F173: 주문상세 > 주문반품 > 주문반품신청 | J173: R | K173: 상 | R173: 전석훈 | S173: 김지철 | T173: 2021-01-22 | U173: 2021-01-29 | V173: 2021-01-25 | W173: 2021-01-29 | Z173: 1 | AA173: 1 | AB173: 0 | AC173: 1 | AD173: 1 | AE173: 0 | AF173: 01
A174: 169 | F174: 주문상세 > 주문반품 > 무료배송이하로 적용될때 배송비 적용 | J174: R | K174: 상 | R174: 전석훈 | S174: 김지철 | T174: 2021-01-22 | U174: 2021-01-29 | V174: 2021-01-25 | W174: 2021-01-29 | Z174: 1 | AA174: 1 | AB174: 0 | AC174: 1 | AD174: 1 | AE174: 0 | AF174: 01
A175: 170 | F175: 주문상세 > 주문반품 > 회수지정보등록 | J175: R | K175: 상 | R175: 전석훈 | S175: 김지철 | T175: 2021-01-22 | U175: 2021-01-29 | V175: 2021-01-25 | W175: 2021-01-29 | Z175: 1 | AA175: 1 | AB175: 0 | AC175: 1 | AD175: 1 | AE175: 0 | AF175: 01
A176: 171 | F176: 주문상세 > 주문반품 > 복수건 반품 기능 구현 | J176: R | K176: 상 | R176: 전석훈 | S176: 김지철 | T176: 2021-01-22 | U176: 2021-01-29 | V176: 2021-01-25 | W176: 2021-01-29 | Z176: 1 | AA176: 1 | AB176: 0 | AC176: 1 | AD176: 1 | AE176: 0 | AF176: 01
A177: 172 | F177: 주문상세 > 주문반품 > 사용포인트 원복 처리 | J177: R | K177: 상 | R177: 전석훈 | S177: 김지철 | T177: 2021-01-22 | U177: 2021-05-14 | V177: 2021-06-07 | W177: 2021-06-11 | Z177: 1 | AA177: 1 | AB177: 0 | AC177: 5 | AD177: 6 | AE177: 28 | AF177: 05
A178: 173 | F178: 주문상세 > 주문반품 > 사용쿠폰 원복 처리 (상품쿠폰) | J178: R | K178: 상 | R178: 전석훈 | S178: 김지철 | T178: 2021-01-22 | U178: 2021-05-14 | V178: 2021-06-07 | W178: 2021-06-11 | Z178: 1 | AA178: 1 | AB178: 0 | AC178: 5 | AD178: 6 | AE178: 28 | AF178: 05
A179: 174 | F179: 주문상세 > 주문반품 > PG연동 | J179: R | K179: 상 | R179: 전석훈 | S179: 김지철 | T179: 2021-01-22 | U179: 2021-05-14 | V179: 2021-06-07 | W179: 2021-06-11 | Z179: 1 | AA179: 1 | AB179: 0 | AC179: 5 | AD179: 6 | AE179: 28 | AF179: 05
A180: 175 | D180: 주문교환 | F180: 주문상세 > 주문교환 > 주문교환신청 | J180: R | K180: 상 | R180: 전석훈 | S180: 김지철 | T180: 2021-02-01 | U180: 2021-02-08 | V180: 2021-01-25 | W180: 2021-01-29 | Z180: 1 | AA180: 1 | AB180: 0 | AC180: 2 | AD180: 1 | AE180: 0 | AF180: 02
A181: 176 | F181: 주문상세 > 주문교환 > 배송지정보등록 | J181: R | K181: 상 | R181: 전석훈 | S181: 김지철 | T181: 2021-02-01 | U181: 2021-02-08 | V181: 2021-01-25 | W181: 2021-01-29 | Z181: 1 | AA181: 1 | AB181: 0 | AC181: 2 | AD181: 1 | AE181: 0 | AF181: 02
A182: 177 | F182: 주문상세 > 주문교환 > 회수지정보등록 | J182: R | K182: 상 | R182: 전석훈 | S182: 김지철 | T182: 2021-02-01 | U182: 2021-02-08 | V182: 2021-01-25 | W182: 2021-01-29 | Z182: 1 | AA182: 1 | AB182: 0 | AC182: 2 | AD182: 1 | AE182: 0 | AF182: 02
A183: 178 | F183: 주문상세 > 주문교환 > 복수건 교환 기능 구현 | J183: R | K183: 상 | R183: 전석훈 | S183: 김지철 | T183: 2021-02-01 | U183: 2021-02-08 | V183: 2021-01-25 | W183: 2021-01-29 | Z183: 1 | AA183: 1 | AB183: 0 | AC183: 2 | AD183: 1 | AE183: 0 | AF183: 02
A184: 179 | F184: 주문상세 > 주문교환 > 교환대상상품 재고 체크 | J184: R | K184: 상 | R184: 전석훈 | S184: 김지철 | T184: 2021-02-01 | U184: 2021-02-08 | V184: 2021-01-25 | W184: 2021-01-29 | Z184: 1 | AA184: 1 | AB184: 0 | AC184: 2 | AD184: 1 | AE184: 0 | AF184: 02
A185: 180 | D185: 사은품취소 | F185: 주문상세 > 사은품취소 > 사은품 전체취소 | J185: R | K185: 상 | R185: 전석훈 | S185: 김지철 | T185: 2021-02-09 | U185: 2021-05-18 | V185: 2021-06-07 | W185: 2021-06-11 | Y185: 전체취소시에만적용 | Z185: 1 | AA185: 1 | AB185: 0 | AC185: 5 | AD185: 6 | AE185: 24 | AF185: 05
A186: 181 | F186: 주문상세 > 사은품취소 > 사은품 취소시 포인트 원복 처리 | J186: R | K186: 상 | R186: 전석훈 | S186: 김지철 | T186: 2021-02-09 | U186: 2021-05-18 | V186: 2021-06-07 | W186: 2021-06-11 | Y186: 전체취소시에만적용 | Z186: 1 | AA186: 1 | AB186: 0 | AC186: 5 | AD186: 6 | AE186: 24 | AF186: 05
A187: 182 | F187: 주문상세 > 사은품취소 > 사은품 재고 원복 처리 | J187: R | K187: 상 | R187: 전석훈 | S187: 김지철 | T187: 2021-02-09 | U187: 2021-05-18 | V187: 2021-06-07 | W187: 2021-06-11 | Y187: 전체취소시에만적용 | Z187: 1 | AA187: 1 | AB187: 0 | AC187: 5 | AD187: 6 | AE187: 24 | AF187: 05
A188: 183 | D188: 반품TO교환 | F188: 주문상세 > 반품TO교환 팝업 (환불컨펌 이전 고객요청) | J188: R | K188: 상 | R188: 전석훈 | S188: 김지철 | T188: 2021-06-14 | U188: 2021-07-07 | V188: 2021-06-14 | W188: 2021-07-09 | Y188: 반품TO교환 고객요청 | Z188: 1 | AA188: 1 | AB188: 0 | AC188: 7 | AD188: 7 | AE188: 2 | AF188: 07
A189: 184 | D189: NPAY 송장번호전송 | F189: NPAY 연동 > 송장번호 전송 | J189: R | K189: 상 | R189: 전석훈 | S189: 이태영 | T189: 2021-04-19 | U189: 2021-05-17 | V189: 2021-06-01 | W189: 2021-06-23 | Z189: 1 | AA189: 1 | AB189: 0 | AC189: 5 | AD189: 6 | AE189: 37 | AF189: 05
A190: 185 | D190: NPAY 취소, 반품, 교환 접수 | F190: NPAY 취소철회 | J190: R | K190: 상 | R190: 전석훈 | S190: 이태영 | T190: 2021-04-19 | U190: 2021-05-17 | V190: 2021-06-21 | W190: 2021-06-25 | Z190: 1 | AA190: 1 | AB190: 0 | AC190: 5 | AD190: 6 | AE190: 39 | AF190: 05
A191: 186 | F191: NPAY 취소완료 | J191: R | K191: 상 | R191: 전석훈 | S191: 이태영 | T191: 2021-04-19 | U191: 2021-05-17 | V191: 2021-06-21 | W191: 2021-06-25 | Z191: 1 | AA191: 1 | AB191: 0 | AC191: 5 | AD191: 6 | AE191: 39 | AF191: 05
A192: 187 | F192: NPAY 반품철회 | J192: R | K192: 상 | R192: 전석훈 | S192: 이태영 | T192: 2021-04-19 | U192: 2021-05-17 | V192: 2021-06-21 | W192: 2021-06-25 | Z192: 1 | AA192: 1 | AB192: 0 | AC192: 5 | AD192: 6 | AE192: 39 | AF192: 05
A193: 188 | F193: NPAY 교환철회 | J193: R | K193: 상 | R193: 전석훈 | S193: 이태영 | T193: 2021-04-19 | U193: 2021-05-17 | V193: 2021-06-21 | W193: 2021-06-25 | Z193: 1 | AA193: 1 | AB193: 0 | AC193: 5 | AD193: 6 | AE193: 39 | AF193: 05
A194: 189 | D194: 배송관리 | E194: C2001 | F194: 배송목록(배송지연목록포함) | I194: /delivery/list/form | J194: RUD | K194: 중 | R194: 김덕규 | S194: 문달호 | T194: 2021-02-25 | U194: 2021-02-26 | V194: 2021-02-25 | W194: 2021-02-26 | Z194: 1 | AA194: 1 | AB194: 0 | AC194: 2 | AD194: 2 | AE194: 0 | AF194: 02
A195: 190 | E195: C2001 | F195: 배송목록(결품처리 PG연동) | I195: /delivery/list/form | J195: RUD | K195: 중 | R195: 김덕규 | S195: 문달호 | T195: 2021-04-19 | U195: 2021-04-21 | V195: 2021-04-22 | W195: 2021-04-23 | Z195: 1 | AA195: 1 | AB195: 0 | AC195: 4 | AD195: 4 | AE195: 2 | AF195: 04
A196: 191 | E196: C2004 | F196: 출고금지상품관리 | I196: /delivery/bangoods/list/form | J196: RUD | K196: 중 | R196: 김덕규 | S196: 문달호 | T196: 2020-12-08 | U196: 2020-12-16 | V196: 2020-12-14 | W196: 2020-12-16 | Y196: 정지혜과장 협의 필요 -기간 | Z196: 1 | AA196: 1 | AB196: 0 | AC196: 12 | AD196: 12 | AE196: 0 | AF196: 12
A197: 192 | E197: C2002 | F197: 수동출고처지정 | I197: /delivery/assign/list/form | J197: RU | K197: 상 | R197: 김덕규 | S197: 문달호 | T197: 2021-04-14 | U197: 2021-04-15 | V197: 2021-04-19 | W197: 2021-04-20 | Y197: 출고지정취소 기능 필요 | Z197: =IF(S197="",0,1) -> 1 | AA197: =IF(LEN(W197)>0,1,0) -> 1 | AB197: =Z197-AA197 -> 0 | AC197: =IF(U197="","",MONTH(U197)) -> 4 | AD197: =IF(W197="","",MONTH(W197)) -> 4 | AE197: =IF(W197<U197,0,W197-U197) -> 5 | AF197: =TEXT(AC197,"00") -> 04
A198: 193 | E198: C2005 | F198: 교환배송미출고대상 | J198: RU | K198: 상 | R198: 전석훈 | S198: 전석훈 | T198: 2021-04-14 | U198: 2021-04-15 | V198: 2021-06-07 | W198: 2021-06-11 | Y198: 교환출고시재고부족 | Z198: 1 | AA198: 1 | AB198: 0 | AC198: 4 | AD198: 6 | AE198: 57 | AF198: 04
A199: 194 | E199: C2006 | F199: 교환TO취소 | J199: RU | K199: 상 | R199: 전석훈 | S199: 전석훈 | T199: 2021-04-14 | U199: 2021-04-15 | V199: 2021-06-07 | W199: 2021-06-11 | Y199: 교환출고시재고부족 | Z199: 1 | AA199: 1 | AB199: 0 | AC199: 4 | AD199: 6 | AE199: 57 | AF199: 04
A200: 195 | D200: 회수관리 | E200: C3005 | F200: 회수지시목록 | I200: /withdraw/directive/form | J200: CRU | K200: 상 | R200: 김덕규 | S200: 문달호 | T200: 2021-03-10 | U200: 2021-03-11 | V200: 2021-03-10 | W200: 2021-03-11 | Z200: 1 | AA200: 1 | AB200: 0 | AC200: 3 | AD200: 3 | AE200: 0 | AF200: 03
A201: 196 | E201: C3003 | F201: WMS회수목록 | I201: /withdraw/wms/list/form | J201: CRU | K201: 상 | R201: 김덕규 | S201: 문달호 | T201: 2021-03-10 | U201: 2021-03-11 | V201: 2021-03-10 | W201: 2021-03-11 | Z201: =IF(S201="",0,1) -> 1 | AA201: =IF(LEN(W201)>0,1,0) -> 1 | AB201: =Z201-AA201 -> 0 | AC201: =IF(U201="","",MONTH(U201)) -> 3 | AD201: =IF(W201="","",MONTH(W201)) -> 3 | AE201: =IF(W201<U201,0,W201-U201) -> 0 | AF201: =TEXT(AC201,"00") -> 03
A202: 197 | E202: C3004 | F202: WMS회수예외관리 | I202: /withdraw/exception/form | J202: CRUD | K202: 중 | R202: 김덕규 | S202: 문달호 | T202: 2021-03-05 | U202: 2021-03-05 | V202: 2021-03-04 | W202: 2021-03-05 | Z202: =IF(S202="",0,1) -> 1 | AA202: =IF(LEN(W202)>0,1,0) -> 1 | AB202: =Z202-AA202 -> 0 | AC202: =IF(U202="","",MONTH(U202)) -> 3 | AD202: =IF(W202="","",MONTH(W202)) -> 3 | AE202: =IF(W202<U202,0,W202-U202) -> 0 | AF202: =TEXT(AC202,"00") -> 03
... 570 more rows
